Workbook

Sheet ＴＯＰ
B5: 入力・移動 各シートの | E5: に必要事項を入力します。
B6: 印刷 各シートはＡ４サイズの用紙に出力されます。
B8: 入力・移動 | D8: 印刷 | F8: 説明
F10: 事業者名と年齢、シミュレーションの対象年度を入力してください。
F12: 前年一年の個人事業の所得税青色申告決算書の数字を転記します（シミュレーションの基礎数字になります。）
F14: 前年の所得税確定申告書の第一表の数字を転記します。
F16: 個人事業の青色専従者の給与の状況と、法人設立後に家族に支払う給与の見込額を入力します。
F18: 法人設立後、個人事業の売上・費用のうち、法人へ移す金額を入力します。
F20: 法人設立後、個人に外注費や賃借料等を払う場合には、こちらに金額を入力しシミュレーションします。
F22: 個人・法人間の取引を入力した後の損益計算書から、法人の税金を計算します。申告調整項目がある場合には、追加入力ください。
F24: 個人事業の場合の税金・社会保険料の負担額と、法人設立後の法人・個人事業の税金・社会保険料の負担額を一枚のシートで対比します。
F26: 提供：小林敬幸税理士事務所
F27: Ver. 1.0
C28: 保護パスワードは、左の本の背面の
C29: ２つめのバーコードの数字
C30: （1922で始まる１３ケタの数字（半角））
C31: になっています。
C33: ご活用いただけるようでしたら、ぜひ本書も
C34: お求めください。

Sheet 基本情報入力
C7: ●基本情報
C8: お名前 | F8: 今野 友夫
C10: 年齢 | F10: 45
C12: ●シミュレーション年度 | F12: 令和 | G12: 3 | H12: 年度

Sheet 個人青色申告決算書
E6: 令和 | F6: =基本情報入力!G12 -> 3 | G6: 年度分青色決算書
D7: 住所 | J7: 氏名 | L7: =基本情報入力!F8 -> 今野 友夫
D8: 事業所住所 | J8: 電話番号
D9: 業種名 | H9: 屋号 | J9: 加入団体
B10: 損 益 計 算 書 | F10: (自 | G10: =DATE(F6+2018,1,1) -> 2021-01-01 | I10: 至 | J10: =DATE(F6+2018,12,31) -> 2021-12-31 | M10: )
B11: 科 目 | E11: 金 額 | F11: 科 目 | I11: 金 額 | J11: 科 目 | N11: 金 額
B12: 売上金額 | D12: 1 | E12: 15800000 | F12: 経 費 | G12: 消耗品費 | H12: 17 | I12: 750000 | J12: 各種引当金・準備金 | K12: 繰戻額等 | L12: 貸倒引当金 | M12: 34 | N12: 0
G13: 減価償却費 | H13: 18 | I13: 300000 | M13: 35
B14: 売上原価 | C14: 期首商品 | D14: 2 | G14: 福利厚生費 | H14: 19 | M14: 36
C15: 仕入高 | D15: 3 | G15: 給与賃金 | H15: 20 | I15: 0 | L15: 計 | M15: 37 | N15: =SUM(N12:N14) -> 0
C16: 小計 | D16: 4 | E16: =SUM(E14:E15) -> 0 | G16: 外注工賃 | H16: 21 | I16: 1115810 | K16: 繰入額等 | L16: 専従者給与 | M16: 38 | N16: 1020000
C17: 期末商品 | D17: 5 | E17: 0 | G17: 地代家賃 | H17: 22 | L17: 貸倒引当金 | M17: 39 | N17: 0
C18: 差引原価 | D18: 6 | E18: =E16-E17 -> 0 | G18: 貸倒金 | H18: 23 | I18: 430000 | M18: 40
B19: 差引金額 | D19: 7 | E19: =E12-E18 -> 15800000 | G19: 支払手数料 | H19: 24 | I19: 0 | M19: 41
G20: 車両費 | H20: 25 | I20: 600000 | L20: 計 | M20: 42 | N20: =SUM(N16:N19) -> 1020000
B21: 経 費 | C21: 租税公課 | D21: 8 | E21: 50000 | G21: 消費税 | H21: 26 | I21: 250000 | J21: 青色特別控除前の所得金額 | M21: 43 | N21: =I28+N15-N20 -> 8250000
C22: 荷造運賃 | D22: 9 | E22: 354600 | G22: 税理士顧問料 | H22: 27 | I22: 330000 | J22: 青色申告特別控除額 | M22: 44 | N22: 650000
C23: 水道光熱費 | D23: 10 | E23: 120852 | G23: 賃借料 | H23: 28 | I23: 0 | J23: 所 得 金 額 | M23: 45 | N23: =N21-N22 -> 7600000
C24: 旅費交通費 | D24: 11 | E24: 546717 | H24: 29 | I24: 0
C25: 通信費 | D25: 12 | E25: 376521 | H25: 30 | I25: 330000
C26: 広告宣伝費 | D26: 13 | E26: 323500 | G26: 雑費 | H26: 31 | I26: 182000
C27: 接待交際費 | D27: 14 | E27: 450000 | G27: 計 | H27: 32 | I27: =SUM(E21:E29,I12:I26) -> 6530000
C28: 損害保険料 | D28: 15 | E28: 20000 | F28: 差引金額 | H28: 33 | I28: =E19-I27 -> 9270000
C29: 修繕費 | D29: 16

Sheet 事業主の所得税申告状況
A7: 個人事業主の所得税申告状況
B8: 名前 | C8: =個人青色申告決算書!L7 -> 今野 友夫
C9: 元の確定申告の金額 | D9: 法人設立後の増減額 | E9: 増減後の金額
A10: ①所得金額 | B10: 事業所得の金額 | C10: =個人青色申告決算書!N23 -> 7600000 | D10: =-(C10+個人青色申告決算書!N22)+税前ＰＬの組替!G53 -> -5000000 | E10: =SUM(C10:D10) -> 2600000
B11: 法人の給与所得の金額 | D11: =給与の情報!L18 -> 480000 | E11: =SUM(C11:D11) -> 480000
B12: その他の所得の額 | E12: =SUM(C12:D12) -> 0
B13: 所得金額合計 | C13: =SUM(C10:C12) -> 7600000 | E13: =SUM(E10:E12) -> 3080000
A14: ②所得控除額 | B14: 社会保険料控除額
B15: （給与控除の社会保険料） | D15: =給与の情報!L19 -> 158664 | E15: =SUM(C15:D15) -> 158664
B16: （国民健康保険料） | C16: 530000 | D16: -530000 | E16: 0
B17: （国民年金保険料） | C17: 170000 | D17: -170000 | E17: 0
B18: （その他の社会保険料） | E18: 0
B19: 小規模企業共済掛金控除 | D19: 840000 | E19: 840000
B20: 生命保険料控除 | C20: 50000 | E20: 50000
B21: 地震保険料控除 | E21: 0
B22: 寡婦・寡夫控除 | E22: 0
B23: 障害者控除 | E23: 0
B24: 配偶者控除 | E24: 0
B25: 配偶者特別控除 | E25: 0
B26: 扶養控除 | C26: 380000 | E26: 380000
B27: その他の所得控除 | C27: 50000 | E27: 50000
B28: 基礎控除 | C28: 480000 | E28: 480000
B29: 所得控除額合計 | C29: =SUM(C14:C28) -> 1660000 | E29: =SUM(E14:E28) -> 1958664
A30: ①－② | B30: 課税所得金額 | C30: =IF(C13-C29<0,0,C13-C29) -> 5940000 | E30: =IF(E13-E29<0,0,E13-E29) -> 1121336
B31: 所得税額 | C31: =IF(C30<=1950000,ROUNDDOWN(C30*0.05,0),IF(C30<=3300000,ROUNDDOWN(C30*0.1-97500,0),IF(C30<=6950000,ROUNDDOWN(C30*0.2-427500,0),IF(C30<=9000000,ROUNDDOWN(C30*0.23-636000,0),IF(C30<=18000000,ROUNDDOWN(C30*0.33-1536000,0),ROUNDDOWN(C30*0.4-2796000,0)))))) -> 760500 | E31: =IF(E30<=1950000,ROUNDDOWN(E30*0.05,-2),IF(E30<=3300000,ROUNDDOWN(E30*0.1-97500,-2),IF(E30<=6950000,ROUNDDOWN(E30*0.2-427500,-2),IF(E30<=9000000,ROUNDDOWN(E30*0.23-636000,-2),IF(E30<=18000000,ROUNDDOWN(E30*0.33-1536000,-2),ROUNDDOWN(E30*0.4-2796000,-2)))))) -> 56000
B32: 所得税+復興特別所得税額 （所得税額×１０２．１％） | C32: =ROUNDDOWN(C31*1.021,-2) -> 776400 | E32: =ROUNDDOWN(E31*1.021,-2) -> 57100
B33: 住宅借入金等特別控除額（所得税） | C33: 300000 | E33: =SUM(C33) -> 300000
B34: 所得税額再計 | C34: =IF(C33>C32,0,C32-C33) -> 476400 | E34: =IF(E33>E32,0,E32-E33) -> 0
B35: 住民税額 （所得税課税所得×１０％（概算）） | C35: =ROUNDDOWN(C30*0.1,-2) -> 594000 | E35: =ROUNDDOWN(E30*0.1,-2) -> 112100
B36: 住宅借入金等特別控除額（住民税） | C36: =IF(C32>C33,0,IF(C33-C32>97500,97500,C33-C32)) -> 0 | E36: =IF(E32>E33,0,IF(E33-E32>97500,97500,E33-E32)) -> 97500
B37: 住民税額再計 | C37: =C35-C36 -> 594000 | E37: =IF(E36>E35,0,E35-E36) -> 14600
B38: 事業税額 | C38: =IF((個人青色申告決算書!N21)>2900000,ROUNDDOWN((個人青色申告決算書!N21-2900000)*C40,-2),0) -> 267500 | E38: =IF((税前ＰＬの組替!G53)>2900000,ROUNDDOWN((税前ＰＬの組替!G53-2900000)*C40,-2),0) -> 17500
B39: 税額合計 | C39: =SUM(C34,C37,C38) -> 1337900 | E39: =SUM(E32:E38) -> 598800
B40: 個人事業税率 | C40: 0.05 | D40: ←ほとんどの業種は、5.0％になります。

Sheet 経費の増減 (hidden)
A6: 税理士報酬など個人→法人に変更した際の経費の増減額を入力します
A8: 個人事業の損益計算書
B9: 科 目 | E9: 元の金額 | F9: 増減額 | G9: 増減後の金額
B10: 売上金額 | D10: 1 | E10: =個人青色申告決算書!E12 -> 15800000 | G10: =SUM(E10:F11) -> 15800000
B12: 売上原価 | C12: 期首商品 | D12: 2 | E12: =個人青色申告決算書!E14 -> 0 | G12: =SUM(E12:F12) -> 0
C13: 仕入高 | D13: 3 | E13: =個人青色申告決算書!E15 -> 0 | G13: =SUM(E13:F13) -> 0
C14: 小計 | D14: 4 | E14: =SUM(E12:E13) -> 0 | G14: =SUM(G12:G13) -> 0
C15: 期末商品 | D15: 5 | E15: =個人青色申告決算書!E17 -> 0 | G15: 0
C16: 差引原価 | D16: 6 | E16: =E14-E15 -> 0 | G16: =G14-G15 -> 0
B17: 差引金額 | D17: 7 | E17: =E10-E16 -> 15800000 | G17: =G10-G16 -> 15800000
B18: 経 費 | C18: =IF(個人青色申告決算書!C21="","",個人青色申告決算書!C21) -> 租税公課 | D18: 8 | E18: =個人青色申告決算書!E21 -> 50000 | G18: 50000
C19: =IF(個人青色申告決算書!C22="","",個人青色申告決算書!C22) -> 荷造運賃 | D19: 9 | E19: =個人青色申告決算書!E22 -> 354600 | G19: 354600
C20: =IF(個人青色申告決算書!C23="","",個人青色申告決算書!C23) -> 水道光熱費 | D20: 10 | E20: =個人青色申告決算書!E23 -> 120852 | G20: 120852
C21: =IF(個人青色申告決算書!C24="","",個人青色申告決算書!C24) -> 旅費交通費 | D21: 11 | E21: =個人青色申告決算書!E24 -> 546717 | G21: 546717
C22: =IF(個人青色申告決算書!C25="","",個人青色申告決算書!C25) -> 通信費 | D22: 12 | E22: =個人青色申告決算書!E25 -> 376521 | G22: 376521
C23: =IF(個人青色申告決算書!C26="","",個人青色申告決算書!C26) -> 広告宣伝費 | D23: 13 | E23: =個人青色申告決算書!E26 -> 323500 | G23: 323500
C24: =IF(個人青色申告決算書!C27="","",個人青色申告決算書!C27) -> 接待交際費 | D24: 14 | E24: =個人青色申告決算書!E27 -> 450000 | G24: 450000
C25: =IF(個人青色申告決算書!C28="","",個人青色申告決算書!C28) -> 損害保険料 | D25: 15 | E25: =個人青色申告決算書!E28 -> 20000 | G25: 20000
C26: =IF(個人青色申告決算書!C29="","",個人青色申告決算書!C29) -> 修繕費 | D26: 16 | E26: =個人青色申告決算書!E29 -> 0 | G26: 0
C27: =IF(個人青色申告決算書!G12="","",個人青色申告決算書!G12) -> 消耗品費 | D27: 17 | E27: =個人青色申告決算書!I12 -> 750000 | G27: 750000
C28: =IF(個人青色申告決算書!G13="","",個人青色申告決算書!G13) -> 減価償却費 | D28: 18 | E28: =個人青色申告決算書!I13 -> 300000 | G28: 300000
C29: =IF(個人青色申告決算書!G14="","",個人青色申告決算書!G14) -> 福利厚生費 | D29: 19 | E29: =個人青色申告決算書!I14 -> 0 | G29: 0
C30: =IF(個人青色申告決算書!G15="","",個人青色申告決算書!G15) -> 給与賃金 | D30: 20 | E30: =個人青色申告決算書!I15 -> 0 | G30: 0
C31: =IF(個人青色申告決算書!G16="","",個人青色申告決算書!G16) -> 外注工賃 | D31: 21 | E31: =個人青色申告決算書!I16 -> 1115810 | G31: 1115810
C32: 利子割引料 | D32: 22 | E32: =個人青色申告決算書!I17 -> 0 | G32: 0
C33: =IF(個人青色申告決算書!G18="","",個人青色申告決算書!G18) -> 貸倒金 | D33: 23 | E33: =個人青色申告決算書!I18 -> 430000 | G33: 430000
C34: =IF(個人青色申告決算書!G19="","",個人青色申告決算書!G19) -> 支払手数料 | D34: 24 | E34: =個人青色申告決算書!I19 -> 0 | G34: 0
C35: =IF(個人青色申告決算書!G20="","",個人青色申告決算書!G20) -> 車両費 | D35: 25 | E35: =個人青色申告決算書!I20 -> 600000 | G35: 600000
C36: =IF(個人青色申告決算書!G21="","",個人青色申告決算書!G21) -> 消費税 | D36: 26 | E36: =個人青色申告決算書!I21 -> 250000 | G36: 250000
C37: =IF(個人青色申告決算書!G22="","",個人青色申告決算書!G22) -> 税理士顧問料 | D37: 27 | E37: =個人青色申告決算書!I22 -> 330000 | G37: 330000
C38: =IF(個人青色申告決算書!G23="","",個人青色申告決算書!G23) -> 賃借料 | D38: 28 | E38: =個人青色申告決算書!I23 -> 0 | G38: 0
C39: =IF(個人青色申告決算書!G24="","",個人青色申告決算書!G24) ->  | D39: 29 | E39: =個人青色申告決算書!I24 -> 0 | G39: 0
C40: =IF(個人青色申告決算書!G25="","",個人青色申告決算書!G25) ->  | D40: 30 | E40: =個人青色申告決算書!I25 -> 330000 | G40: 330000
C41: =IF(個人青色申告決算書!G26="","",個人青色申告決算書!G26) -> 雑費 | D41: 31 | E41: =個人青色申告決算書!I26 -> 182000 | G41: 182000
C42: 計 | D42: 32 | E42: =SUM(E18:E41) -> 6530000 | G42: =SUM(G18:G41) -> 6530000
C43: 差引金額 | D43: 33 | E43: =SUM(E17-E42) -> 9270000 | G43: =SUM(G17-G42) -> 9270000
A44: 各種引当金・準備金 | B44: 繰戻額等 | C44: =IF(個人青色申告決算書!L12="","",個人青色申告決算書!L12) -> 貸倒引当金 | D44: 34 | E44: =個人青色申告決算書!N12 -> 0 | G44: 0
C45: =IF(個人青色申告決算書!L13="","",個人青色申告決算書!L13) ->  | D45: 35 | E45: =個人青色申告決算書!N13 -> 0 | G45: 0
C46: =IF(個人青色申告決算書!L14="","",個人青色申告決算書!L14) ->  | D46: 36 | E46: =個人青色申告決算書!N14 -> 0 | G46: 0
C47: 計 | D47: 37 | E47: =SUM(E44:E46) -> 0 | G47: =SUM(G44:G46) -> 0
B48: 繰入額等 | C48: =IF(個人青色申告決算書!L16="","",個人青色申告決算書!L16) -> 専従者給与 | D48: 38 | E48: =個人青色申告決算書!N16 -> 1020000 | F48: =-E48 -> -1020000 | G48: 0
C49: =IF(個人青色申告決算書!L17="","",個人青色申告決算書!L17) -> 貸倒引当金 | D49: 39 | E49: =個人青色申告決算書!N17 -> 0 | G49: 0
C50: =IF(個人青色申告決算書!L18="","",個人青色申告決算書!L18) ->  | D50: 40 | E50: =個人青色申告決算書!N18 -> 0 | G50: 0
C51: =IF(個人青色申告決算書!L19="","",個人青色申告決算書!L19) ->  | D51: 41 | E51: =個人青色申告決算書!N19 -> 0 | G51: 0
C52: 計 | D52: 42 | E52: =SUM(E48:E51) -> 1020000 | G52: =SUM(G48:G51) -> 0
C53: 青色特別控除前の所得金額 | D53: 43 | E53: =SUM(E43+E47-E52) -> 8250000 | G53: =SUM(G43+G47-G52) -> 9270000
A56: ※法人成りすると、税理士顧問料はアップするのが一般的です。
A57: ※法人成り後、現物給与などを利用して経費を増加させる場合には、適宜その
A58: 金額を入力していきます。

Sheet 給与の情報
L6: 法人成り後
E7: 一人目 | F7: 二人目 | G7: 三人目 | H7: 四人目 | I7: 五人目 | J7: 合計 | L7: 事業主 | M7: 一人目 | N7: 二人目 | O7: 三人目 | P7: 四人目 | Q7: 五人目 | R7: 合計
B8: 名前 | E8: 今野朝子 | L8: =個人青色申告決算書!L7 -> 今野 友夫 | M8: 今野 朝子 | N8: 今野 みつ子 | O8: 今野 菜穂美
B9: 年齢 | E9: 35 | L9: =基本情報入力!F10 -> 45 | M9: 35 | N9: 66 | O9: 33
B10: 関係 | E10: 妻 | M10: 妻 | N10: 母 | O10: 妹
B11: 子育て・介護世帯 | E11: 非該当 | F11: 非該当 | G11: 非該当 | H11: 非該当 | I11: 非該当 | L11: 非該当 | M11: 非該当 | N11: 非該当 | O11: 非該当 | P11: 非該当 | Q11: 非該当
A12: ①所得金額 | B12: 給与の額 | E12: 1020000 | J12: =SUM(E12:H12) -> 1020000 | K12: =IF(J12=個人青色申告決算書!N16,"ＯＫ","不一致") -> ＯＫ | L12: 1030000 | M12: 1030000 | N12: 648000 | O12: 1030000 | R12: =SUM(L12:P12) -> 3738000
B13: 月額給与 | E13: =ROUNDDOWN(E12/12,0) -> 85000 | F13: 0 | G13: 0 | H13: 0 | I13: 0 | L13: =ROUNDDOWN(L12/12,0) -> 85833 | M13: 85833 | N13: 54000 | O13: 85833 | P13: 0 | Q13: 0
B14: 子育て・介護世帯 | E14: =IF(E12<=550000,E12-E12,IF(E12<=1625000,E12-550000,IF(E12<=1800000,E12-(E12*0.4-100000),IF(E12<=3600000,E12-(E12*0.3+80000),IF(E12<=6600000,E12-(E12*0.2+440000),IF(E12<=10000000,E12-(E12*0.1+1100000),E12-2100000)))))) -> 470000 | F14: 0 | G14: 0 | H14: 0 | I14: 0 | L14: =IF(L12<=550000,L12-L12,IF(L12<=1625000,L12-550000,IF(L12<=1800000,L12-(L12*0.4-100000),IF(L12<=3600000,L12-(L12*0.3+80000),IF(L12<=6600000,L12-(L12*0.2+440000),IF(L12<=10000000,L12-(L12*0.1+1100000),L12-2100000)))))) -> 480000 | M14: 480000 | N14: 98000 | O14: 480000 | P14: 0 | Q14: 0
B15: それ以外 | E15: =IF(E12<=550000,E12-E12,IF(E12<=1625000,E12-550000,IF(E12<=1800000,E12-(E12*0.4-100000),IF(E12<=3600000,E12-(E12*0.3+80000),IF(E12<=6600000,E12-(E12*0.2+440000),IF(E12<=8500000,E12-(E12*0.1+1100000),E12-1950000)))))) -> 470000 | F15: 0 | G15: 0 | H15: 0 | I15: 0 | L15: =IF(L12<=550000,L12-L12,IF(L12<=1625000,L12-550000,IF(L12<=1800000,L12-(L12*0.4-100000),IF(L12<=3600000,L12-(L12*0.3+80000),IF(L12<=6600000,L12-(L12*0.2+440000),IF(L12<=8500000,L12-(L12*0.1+1100000),L12-1950000)))))) -> 480000 | M15: 480000 | N15: 98000 | O15: 480000 | P15: 0 | Q15: 0
B16: 給与所得額 | E16: =IF(E11="非該当",E15,E14) -> 470000 | F16: 0 | G16: 0 | H16: 0 | I16: 0 | L16: =IF(L11="非該当",L15,L14) -> 480000 | M16: 480000 | N16: 98000 | O16: 480000 | P16: 0 | Q16: 0
B17: その他の所得の額 | J17: =SUM(E17:H17) -> 0
B18: 所得金額合計 | E18: =SUM(E16:E17) -> 470000 | F18: 0 | G18: 0 | H18: 0 | I18: 0 | L18: =SUM(L16:L17) -> 480000 | M18: 480000 | N18: 98000 | O18: 480000 | P18: 0 | Q18: 0
A19: ②所得控除額 | B19: 社会保険料控除額 | E19: =E44 -> 0 | F19: 0 | G19: 0 | H19: 0 | I19: 0 | L19: =L44 -> 158664 | W19: 基礎控除表
B20: （国民健康保険料） | J20: =SUM(E20:H20) -> 0 | R20: =SUM(L20:P20) -> 0 | W20: 納税者本人の合計所得金額 | X20: 所得税控除額 | Y20: 住民税控除額
B21: （国民年金保険料） | E21: 170000 | J21: =SUM(H21) -> 0 | R21: =SUM(L21:P21) -> 0 | W21: 0 | X21: 950000 | Y21: 430000
B22: （その他の社会保険料） | W22: 1320001 | X22: 880000 | Y22: 430000
B23: 小規模企業共済掛金控除 | M23: 120000 | W23: 3360001 | X23: 680000 | Y23: 430000
B24: 生命保険料控除 | M24: 40000 | W24: 4890001 | X24: 630000 | Y24: 430000
B25: 地震保険料控除 | W25: 6550001 | X25: 580000 | Y25: 430000
B26: 寡婦・寡夫控除 | W26: 23500001 | X26: 480000 | Y26: 430000
B27: 障害者控除 | W27: 24000001 | X27: 320000 | Y27: 290000
B28: 配偶者控除 | W28: 24500001 | X28: 160000 | Y28: 150000
B29: 配偶者特別控除 | W29: 25000001 | X29: 0 | Y29: 0
B30: 扶養控除
B31: その他の所得控除
B32: 基礎控除 | E32: =VLOOKUP(E18,$W$21:$Y$29,2,TRUE) -> 950000 | F32: =VLOOKUP(F18,$W$21:$Y$29,2,TRUE) -> 950000 | G32: 950000 | H32: 950000 | I32: 950000 | M32: =VLOOKUP(M18,$W$21:$Y$29,2,TRUE) -> 950000 | N32: =VLOOKUP(N18,$W$21:$Y$29,2,TRUE) -> 950000 | O32: 950000 | P32: 950000 | Q32: 950000
B33: 所得控除額合計 | E33: =SUM(E19:E32) -> 1120000 | F33: 950000 | G33: 950000 | H33: 950000 | I33: 950000 | M33: =SUM(M19:M32) -> 1110000 | N33: 950000 | O33: 950000 | P33: 950000 | Q33: 950000
A34: ①－② | B34: 課税所得金額 | E34: =IF(E18-E33<0,0,E18-E33) -> 0 | F34: 0 | G34: 0 | H34: 0 | I34: 0 | M34: =IF(M18-M33<0,0,M18-M33) -> 0 | N34: 0 | O34: 0 | P34: 0 | Q34: 0
B35: 所得税額 | E35: =IF(E34<=1950000,ROUNDDOWN(E34*0.05,-2),IF(E34<=3300000,ROUNDDOWN(E34*0.1-97500,-2),IF(E34<=6950000,ROUNDDOWN(E34*0.2-427500,-2),IF(E34<=9000000,ROUNDDOWN(E34*0.23-636000,-2),IF(E34<=18000000,ROUNDDOWN(E34*0.33-1536000,-2),IF(E34<=40000000,ROUNDDOWN(E34*0.4-2796000,-2)*ROUNDDOWN(E34*0.45-4796000,-2))))))) -> 0 | F35: 0 | G35: 0 | H35: 0 | I35: 0 | J35: =SUM(E35:H35) -> 0 | M35: =IF(M34<=1950000,ROUNDDOWN(M34*0.05,-2),IF(M34<=3300000,ROUNDDOWN(M34*0.1-97500,-2),IF(M34<=6950000,ROUNDDOWN(M34*0.2-427500,-2),IF(M34<=9000000,ROUNDDOWN(M34*0.23-636000,-2),IF(M34<=18000000,ROUNDDOWN(M34*0.33-1536000,-2),IF(M34<=40000000,ROUNDDOWN(M34*0.4-2796000,-2)*ROUNDDOWN(M34*0.45-4796000,-2))))))) -> 0 | N35: 0 | O35: 0 | P35: 0 | Q35: 0 | R35: =SUM(L35:P35) -> 0
B36: 所得税+復興特別所得税額 （所得税額×１０２．１％） | E36: =ROUNDDOWN(E35*1.021,-2) -> 0 | F36: 0 | G36: 0 | H36: 0 | I36: 0 | J36: =SUM(E36:H36) -> 0 | M36: =ROUNDDOWN(M35*1.021,-2) -> 0 | N36: 0 | O36: 0 | P36: 0 | Q36: 0 | R36: =SUM(L36:P36) -> 0
B37: 住民税基礎控除 | E37: =VLOOKUP(E18,$W$21:$Y$29,3,TRUE) -> 430000 | F37: =VLOOKUP(F18,$W$21:$Y$29,3,TRUE) -> 430000 | G37: 430000 | H37: 430000 | I37: 430000 | J37: =SUM(E37:I37) -> 2150000 | M37: =VLOOKUP(M18,$W$21:$Y$29,3,TRUE) -> 430000 | N37: 430000 | O37: 430000 | P37: 430000 | Q37: 430000 | R37: =SUM(M37:Q37) -> 2150000
B38: 住民税課税所得 （所得税課税所得×１０％） | E38: =IF(E18-SUM(E19:E31)-E37<0,0,E18-SUM(E19:E31)-E37) -> 0 | F38: =IF(F18-SUM(F19:F31)-F37<0,0,F18-SUM(F19:F31)-F37) -> 0 | G38: 0 | H38: 0 | I38: 0 | J38: =SUM(E38:I38) -> 0 | M38: =IF(M18-SUM(M19:M31)-M37<0,0,M18-SUM(M19:M31)-M37) -> 0 | N38: 0 | O38: 50000 | P38: 0 | Q38: 0 | R38: =SUM(M38:Q38) -> 50000
B39: 住民税額 （所得税課税所得×１０％(基礎控除のみ調整）） | E39: =ROUNDDOWN(E38*0.1,-2) -> 0 | F39: =ROUNDDOWN(F38*0.1,-2) -> 0 | G39: 0 | H39: 0 | I39: 0 | J39: =SUM(E39:I39) -> 0 | M39: =ROUNDDOWN(M38*0.1,-2) -> 0 | N39: =ROUNDDOWN(N38*0.1,-2) -> 0 | O39: 5000 | P39: 0 | Q39: 0 | R39: =SUM(M39:Q39) -> 5000
B40: 税額合計 | E40: =SUM(E36,E39) -> 0 | F40: =SUM(F36,F39) -> 0 | G40: 0 | H40: 0 | I40: 0 | J40: =SUM(J36,J39) -> 0 | M40: =SUM(M36,M39) -> 0 | N40: 0 | O40: 5000 | P40: 0 | Q40: 0 | R40: 5000
A42: 社会 保険料 | B42: 社会保険の加入の有無 | L42: 加入 | M42: 非加入 | N42: 非加入 | O42: 非加入 | P42: 非加入 | Q42: 非加入 | R42: 合計
B43: 法人負担額 | L43: =IF(L42="非加入","",L57*12) -> 162456 | R43: =SUM(L43:P43) -> 162456
B44: 個人負担額 | L44: =IF(L42="非加入","",L56*12) -> 158664 | R44: =SUM(L44:P44) -> 158664
B45: 合計 | L45: =SUM(L43:L44) -> 321120 | M45: 0 | N45: 0 | O45: 0 | P45: 0 | Q45: 0 | R45: =SUM(L45:P45) -> 321120
A46: 社保算定 基礎数字 | B46: 保険料率の入力 （最新の「健康保険・厚生年金保険 標準報酬月額・保険料額表」の料率を入力してください）
B47: 健康保険 | C47: 一般被保険者 | D47: 0.0508 | L47: =IF(L9>=40,IF(L9>=65,$D47,$D48),$D47) -> 0.05875 | M47: 0.0508 | N47: 0.0508 | O47: 0.0508 | P47: 0.0508 | Q47: 0.0508
C48: 介護保険第２号被保険者 | D48: 0.05875
B49: 厚生年金 | C49: 厚生年金保険料被保険者 | D49: 0.0915 | L49: =IF(L9>=70,0,$D49) -> 0.0915 | M49: 0.0915 | N49: 0.0915 | O49: 0.0915 | P49: 0.0915 | Q49: 0.0915
B50: 子ども・子育て拠出金 | D50: 0.0036 | L50: =$D50 -> 0.0036 | M50: =$D50 -> 0.0036 | N50: =$D50 -> 0.0036 | O50: 0.0036 | P50: 0.0036 | Q50: 0.0036
B51: 健康保険標準報酬月額 | L51: =標準報酬月額表!F57 -> 88000 | M51: =標準報酬月額表!H57 -> 88000 | N51: =標準報酬月額表!J57 -> 58000 | O51: =標準報酬月額表!L57 -> 88000 | P51: =標準報酬月額表!N57 ->  | Q51: =標準報酬月額表!P57 -> 
B52: 厚生年金標準報酬月額 | L52: =標準報酬月額表!G57 -> 88000 | M52: =標準報酬月額表!I57 -> 88000 | N52: =標準報酬月額表!K57 -> 88000 | O52: =標準報酬月額表!M57 -> 88000 | P52: =標準報酬月額表!O57 ->  | Q52: =標準報酬月額表!Q57 -> 
B53: 健康保険月額 | E53: =IF(ISERROR(ROUNDDOWN(E51*E47,0)),"",ROUNDDOWN(E51*E47,0)) -> 0 | F53: 0 | G53: 0 | H53: 0 | I53: 0 | L53: =IF(ISERROR(ROUNDDOWN(L51*L47,0)),"",ROUNDDOWN(L51*L47,0)) -> 5170 | M53: 4470 | N53: 2946 | O53: 4470
B54: 厚生年金月額 | E54: =IF(ISERROR(ROUNDDOWN(E52*E49,0)),"",ROUNDDOWN(E52*E49,0)) -> 0 | F54: 0 | G54: 0 | H54: 0 | I54: 0 | L54: =IF(ISERROR(ROUNDDOWN(L52*L49,0)),"",ROUNDDOWN(L52*L49,0)) -> 8052 | M54: 8052 | N54: 8052 | O54: 8052
B55: 児童手当拠出金月額 | E55: =IF(ISERROR(ROUNDDOWN(E52*E50,0)),"",ROUNDDOWN(E52*E50,0)) -> 0 | F55: 0 | G55: 0 | H55: 0 | I55: 0 | L55: =IF(ISERROR(ROUNDDOWN(L52*L50,0)),"",ROUNDDOWN(L52*L50,0)) -> 316 | M55: 316 | N55: 316 | O55: 316
B56: 個人負担合計 | E56: =SUM(E53:E54) -> 0 | F56: 0 | G56: 0 | H56: 0 | I56: 0 | L56: =SUM(L53:L54) -> 13222 | M56: 12522 | N56: 10998 | O56: 12522 | P56: 0 | Q56: 0
B57: 法人負担合計 | E57: =SUM(E53:E55) -> 0 | F57: 0 | G57: 0 | H57: 0 | I57: 0 | L57: =SUM(L53:L55) -> 13538 | M57: 12838 | N57: 11314 | O57: 12838 | P57: 0 | Q57: 0

Sheet 標準報酬月額表 (hidden)
A1: 標準報酬月額表
A3: 等級 | C3: 標準報酬月額 | E3: 報酬月額 | F3: =給与の情報!L8 -> 今野 友夫 | H3: =給与の情報!M8 -> 今野 朝子 | J3: =給与の情報!N8 -> 今野 みつ子 | L3: =給与の情報!O8 -> 今野 菜穂美 | N3: =給与の情報!P8 -> 0 | P3: =給与の情報!Q8 -> 0
F4: =給与の情報!L13 -> 85833 | H4: =給与の情報!M13 -> 85833 | J4: =給与の情報!N13 -> 54000 | L4: =給与の情報!O13 -> 85833 | N4: =給与の情報!P13 -> 0 | P4: =給与の情報!Q13 -> 0
C5: 健康保険 | D5: 厚生年金 | F5: 健康保険 | G5: 厚生年金 | H5: 健康保険 | I5: 厚生年金 | J5: 健康保険 | K5: 厚生年金 | L5: 健康保険 | M5: 厚生年金 | N5: 健康保険 | O5: 厚生年金 | P5: 健康保険 | Q5: 厚生年金
A6: 1 | B6: － | C6: 58000 | D6: 88000 | E6: 63000 | F6: =IF(F$4<$E6,$C6,"") ->  | G6: =IF(F$4<$E6,$D6,"") ->  | H6: =IF(H$4<$E6,$C6,"") ->  | I6: =IF(H$4<$E6,$D6,"") ->  | J6: =IF(J$4<$E6,$C6,"") -> 58000 | K6: =IF(J$4<$E6,$D6,"") -> 88000 | L6: =IF(L$4<$E6,$C6,"") ->  | M6: =IF(L$4<$E6,$D6,"") ->  | N6: =IF(N$4<$E6,$C6,"") -> 58000 | O6: =IF(N$4<$E6,$D6,"") -> 88000 | P6: =IF(P$4<$E6,$C6,"") -> 58000 | Q6: =IF(P$4<$E6,$D6,"") -> 88000
A7: 2 | B7: － | C7: 68000 | D7: 88000 | E7: 73000 | J7: 68000 | K7: 88000 | L7: =IF(L$4<$E7,$C7,"") ->  | N7: =IF(N$4<$E7,$C7,"") -> 68000 | O7: 88000 | P7: 68000 | Q7: 88000
A8: 3 | B8: － | C8: 78000 | D8: 88000 | E8: 83000 | J8: 78000 | K8: 88000 | N8: 78000 | O8: 88000 | P8: 78000 | Q8: 88000
A9: 4 | B9: 1 | C9: 88000 | D9: 88000 | E9: 93000 | F9: 88000 | G9: 88000 | H9: 88000 | I9: 88000 | J9: 88000 | K9: 88000 | L9: 88000 | M9: 88000 | N9: 88000 | O9: 88000 | P9: 88000 | Q9: 88000
A10: 5 | B10: 2 | C10: 98000 | D10: 98000 | E10: 101000 | F10: 98000 | G10: 98000 | H10: 98000 | I10: 98000 | J10: 98000 | K10: 98000 | L10: 98000 | M10: 98000 | N10: 98000 | O10: 98000 | P10: 98000 | Q10: 98000
A11: 6 | B11: 3 | C11: 104000 | D11: 104000 | E11: 107000 | F11: 104000 | G11: 104000 | H11: 104000 | I11: 104000 | J11: 104000 | K11: 104000 | L11: 104000 | M11: 104000 | N11: 104000 | O11: 104000 | P11: 104000 | Q11: 104000
A12: 7 | B12: 4 | C12: 110000 | D12: 110000 | E12: 114000 | F12: 110000 | G12: 110000 | H12: 110000 | I12: 110000 | J12: 110000 | K12: 110000 | L12: 110000 | M12: 110000 | N12: 110000 | O12: 110000 | P12: 110000 | Q12: 110000
A13: 8 | B13: 5 | C13: 118000 | D13: 118000 | E13: 122000 | F13: 118000 | G13: 118000 | H13: 118000 | I13: 118000 | J13: 118000 | K13: 118000 | L13: 118000 | M13: 118000 | N13: 118000 | O13: 118000 | P13: 118000 | Q13: 118000
A14: 9 | B14: 6 | C14: 126000 | D14: 126000 | E14: 130000 | F14: 126000 | G14: 126000 | H14: 126000 | I14: 126000 | J14: 126000 | K14: 126000 | L14: 126000 | M14: 126000 | N14: 126000 | O14: 126000 | P14: 126000 | Q14: 126000
A15: 10 | B15: 7 | C15: 134000 | D15: 134000 | E15: 138000 | F15: 134000 | G15: 134000 | H15: 134000 | I15: 134000 | J15: 134000 | K15: 134000 | L15: 134000 | M15: 134000 | N15: 134000 | O15: 134000 | P15: 134000 | Q15: 134000
A16: 11 | B16: 8 | C16: 142000 | D16: 142000 | E16: 146000 | F16: 142000 | G16: 142000 | H16: 142000 | I16: 142000 | J16: 142000 | K16: 142000 | L16: 142000 | M16: 142000 | N16: 142000 | O16: 142000 | P16: 142000 | Q16: 142000
A17: 12 | B17: 9 | C17: 150000 | D17: 150000 | E17: 155000 | F17: 150000 | G17: 150000 | H17: 150000 | I17: 150000 | J17: 150000 | K17: 150000 | L17: 150000 | M17: 150000 | N17: 150000 | O17: 150000 | P17: 150000 | Q17: 150000
A18: 13 | B18: 10 | C18: 160000 | D18: 160000 | E18: 165000 | F18: 160000 | G18: 160000 | H18: 160000 | I18: 160000 | J18: 160000 | K18: 160000 | L18: 160000 | M18: 160000 | N18: 160000 | O18: 160000 | P18: 160000 | Q18: 160000
A19: 14 | B19: 11 | C19: 170000 | D19: 170000 | E19: 175000 | F19: 170000 | G19: 170000 | H19: 170000 | I19: 170000 | J19: 170000 | K19: 170000 | L19: 170000 | M19: 170000 | N19: 170000 | O19: 170000 | P19: 170000 | Q19: 170000
A20: 15 | B20: 12 | C20: 180000 | D20: 180000 | E20: 185000 | F20: 180000 | G20: 180000 | H20: 180000 | I20: 180000 | J20: 180000 | K20: 180000 | L20: 180000 | M20: 180000 | N20: 180000 | O20: 180000 | P20: 180000 | Q20: 180000
A21: 16 | B21: 13 | C21: 190000 | D21: 190000 | E21: 195000 | F21: 190000 | G21: 190000 | H21: 190000 | I21: 190000 | J21: 190000 | K21: 190000 | L21: 190000 | M21: 190000 | N21: 190000 | O21: 190000 | P21: 190000 | Q21: 190000
A22: 17 | B22: 14 | C22: 200000 | D22: 200000 | E22: 210000 | F22: =IF(F$4<$E22,$C22,"") -> 200000 | G22: 200000 | H22: 200000 | I22: 200000 | J22: 200000 | K22: 200000 | L22: 200000 | M22: 200000 | N22: 200000 | O22: 200000 | P22: 200000 | Q22: 200000
A23: 18 | B23: 15 | C23: 220000 | D23: 220000 | E23: 230000 | F23: 220000 | G23: 220000 | H23: 220000 | I23: 220000 | J23: 220000 | K23: 220000 | L23: 220000 | M23: 220000 | N23: 220000 | O23: 220000 | P23: 220000 | Q23: 220000
A24: 19 | B24: 16 | C24: 240000 | D24: 240000 | E24: 250000 | F24: 240000 | G24: 240000 | H24: 240000 | I24: 240000 | J24: 240000 | K24: 240000 | L24: 240000 | M24: 240000 | N24: 240000 | O24: 240000 | P24: 240000 | Q24: 240000
A25: 20 | B25: 17 | C25: 260000 | D25: 260000 | E25: 270000 | F25: 260000 | G25: 260000 | H25: 260000 | I25: 260000 | J25: 260000 | K25: 260000 | L25: 260000 | M25: 260000 | N25: 260000 | O25: 260000 | P25: 260000 | Q25: 260000
A26: 21 | B26: 18 | C26: 280000 | D26: 280000 | E26: 290000 | F26: 280000 | G26: 280000 | H26: 280000 | I26: 280000 | J26: 280000 | K26: 280000 | L26: 280000 | M26: 280000 | N26: 280000 | O26: 280000 | P26: 280000 | Q26: 280000
A27: 22 | B27: 19 | C27: 300000 | D27: 300000 | E27: 310000 | F27: 300000 | G27: 300000 | H27: 300000 | I27: 300000 | J27: 300000 | K27: 300000 | L27: 300000 | M27: 300000 | N27: 300000 | O27: 300000 | P27: 300000 | Q27: 300000
A28: 23 | B28: 20 | C28: 320000 | D28: 320000 | E28: 330000 | F28: 320000 | G28: 320000 | H28: 320000 | I28: 320000 | J28: 320000 | K28: 320000 | L28: 320000 | M28: 320000 | N28: 320000 | O28: 320000 | P28: 320000 | Q28: 320000
A29: 24 | B29: 21 | C29: 340000 | D29: 340000 | E29: 350000 | F29: 340000 | G29: 340000 | H29: 340000 | I29: 340000 | J29: 340000 | K29: 340000 | L29: 340000 | M29: 340000 | N29: 340000 | O29: 340000 | P29: 340000 | Q29: 340000
A30: 25 | B30: 22 | C30: 360000 | D30: 360000 | E30: 370000 | F30: 360000 | G30: 360000 | H30: 360000 | I30: 360000 | J30: 360000 | K30: 360000 | L30: 360000 | M30: 360000 | N30: 360000 | O30: 360000 | P30: 360000 | Q30: 360000
A31: 26 | B31: 23 | C31: 380000 | D31: 380000 | E31: 395000 | F31: 380000 | G31: 380000 | H31: 380000 | I31: 380000 | J31: 380000 | K31: 380000 | L31: 380000 | M31: 380000 | N31: 380000 | O31: 380000 | P31: 380000 | Q31: 380000
A32: 27 | B32: 24 | C32: 410000 | D32: 410000 | E32: 425000 | F32: 410000 | G32: 410000 | H32: 410000 | I32: 410000 | J32: 410000 | K32: 410000 | L32: 410000 | M32: 410000 | N32: 410000 | O32: 410000 | P32: 410000 | Q32: 410000
A33: 28 | B33: 25 | C33: 440000 | D33: 440000 | E33: 455000 | F33: 440000 | G33: 440000 | H33: 440000 | I33: 440000 | J33: 440000 | K33: 440000 | L33: 440000 | M33: 440000 | N33: 440000 | O33: 440000 | P33: 440000 | Q33: 440000
A34: 29 | B34: 26 | C34: 470000 | D34: 470000 | E34: 485000 | F34: 470000 | G34: 470000 | H34: 470000 | I34: 470000 | J34: 470000 | K34: 470000 | L34: 470000 | M34: 470000 | N34: 470000 | O34: 470000 | P34: 470000 | Q34: 470000
A35: 30 | B35: 27 | C35: 500000 | D35: 500000 | E35: 515000 | F35: 500000 | G35: 500000 | H35: 500000 | I35: 500000 | J35: 500000 | K35: 500000 | L35: 500000 | M35: 500000 | N35: 500000 | O35: 500000 | P35: 500000 | Q35: 500000
A36: 31 | B36: 28 | C36: 530000 | D36: 530000 | E36: 545000 | F36: 530000 | G36: 530000 | H36: 530000 | I36: 530000 | J36: 530000 | K36: 530000 | L36: 530000 | M36: 530000 | N36: 530000 | O36: 530000 | P36: 530000 | Q36: 530000
A37: 32 | B37: 29 | C37: 560000 | D37: 560000 | E37: 575000 | F37: 560000 | G37: 560000 | H37: 560000 | I37: 560000 | J37: 560000 | K37: 560000 | L37: 560000 | M37: 560000 | N37: 560000 | O37: 560000 | P37: 560000 | Q37: 560000
A38: 33 | B38: 30 | C38: 590000 | D38: 590000 | E38: 605000 | F38: =IF(F$4<$E38,$C38,"") -> 590000 | G38: 590000 | H38: 590000 | I38: 590000 | J38: 590000 | K38: 590000 | L38: 590000 | M38: 590000 | N38: 590000 | O38: 590000 | P38: 590000 | Q38: 590000
A39: 34 | B39: 31 | C39: 620000 | D39: 620000 | E39: 635000 | F39: 620000 | G39: 620000 | H39: 620000 | I39: 620000 | J39: 620000 | K39: 620000 | L39: 620000 | M39: 620000 | N39: 620000 | O39: 620000 | P39: 620000 | Q39: 620000
A40: 35 | B40: 32 | C40: 650000 | D40: 650000 | E40: 665000 | F40: 650000 | G40: 650000 | H40: 650000 | I40: 650000 | J40: 650000 | K40: 650000 | L40: 650000 | M40: 650000 | N40: 650000 | O40: 650000 | P40: 650000 | Q40: 650000
A41: 36 | B41: - | C41: 680000 | D41: 650000 | E41: 695000 | F41: 680000 | G41: 650000 | H41: 680000 | I41: 650000 | J41: 680000 | K41: 650000 | L41: 680000 | M41: 650000 | N41: 680000 | O41: 650000 | P41: 680000 | Q41: 650000
A42: 37 | B42: － | C42: 710000 | D42: 650000 | E42: 730000 | F42: 710000 | G42: 650000 | H42: 710000 | I42: 650000 | J42: 710000 | K42: 650000 | L42: 710000 | M42: 650000 | N42: 710000 | O42: 650000 | P42: 710000 | Q42: 650000
A43: 38 | B43: － | C43: 750000 | D43: 650000 | E43: 770000 | F43: 750000 | G43: 650000 | H43: 750000 | I43: 650000 | J43: 750000 | K43: 650000 | L43: 750000 | M43: 650000 | N43: 750000 | O43: 650000 | P43: 750000 | Q43: 650000
A44: 39 | B44: － | C44: 790000 | D44: 650000 | E44: 810000 | F44: 790000 | G44: 650000 | H44: 790000 | I44: 650000 | J44: 790000 | K44: 650000 | L44: 790000 | M44: 650000 | N44: 790000 | O44: 650000 | P44: 790000 | Q44: 650000
A45: 40 | B45: － | C45: 830000 | D45: 650000 | E45: 855000 | F45: 830000 | G45: 650000 | H45: 830000 | I45: 650000 | J45: 830000 | K45: 650000 | L45: 830000 | M45: 650000 | N45: 830000 | O45: 650000 | P45: 830000 | Q45: 650000
A46: 41 | B46: － | C46: 880000 | D46: 650000 | E46: 905000 | F46: 880000 | G46: 650000 | H46: 880000 | I46: 650000 | J46: 880000 | K46: 650000 | L46: 880000 | M46: 650000 | N46: 880000 | O46: 650000 | P46: 880000 | Q46: 650000
A47: 42 | B47: － | C47: 930000 | D47: 650000 | E47: 955000 | F47: 930000 | G47: 650000 | H47: 930000 | I47: 650000 | J47: 930000 | K47: 650000 | L47: 930000 | M47: 650000 | N47: 930000 | O47: 650000 | P47: 930000 | Q47: 650000
A48: 43 | B48: － | C48: 980000 | D48: 650000 | E48: 1005000 | F48: 980000 | G48: 650000 | H48: 980000 | I48: 650000 | J48: 980000 | K48: 650000 | L48: 980000 | M48: 650000 | N48: 980000 | O48: 650000 | P48: 980000 | Q48: 650000
A49: 44 | B49: － | C49: 1030000 | D49: 650000 | E49: 1055000 | F49: 1030000 | G49: 650000 | H49: 1030000 | I49: 650000 | J49: 1030000 | K49: 650000 | L49: 1030000 | M49: 650000 | N49: 1030000 | O49: 650000 | P49: 1030000 | Q49: 650000
A50: 45 | B50: － | C50: 1090000 | D50: 650000 | E50: 1115000 | F50: 1090000 | G50: 650000 | H50: 1090000 | I50: 650000 | J50: 1090000 | K50: 650000 | L50: 1090000 | M50: 650000 | N50: 1090000 | O50: 650000 | P50: 1090000 | Q50: 650000
A51: 46 | B51: － | C51: 1150000 | D51: 650000 | E51: 1175000 | F51: 1150000 | G51: 650000 | H51: 1150000 | I51: 650000 | J51: 1150000 | K51: 650000 | L51: 1150000 | M51: 650000 | N51: 1150000 | O51: 650000 | P51: 1150000 | Q51: 650000
A52: 47 | B52: － | C52: 1210000 | D52: 650000 | E52: 1235000 | F52: 1210000 | G52: 650000 | H52: 1210000 | I52: 650000 | J52: 1210000 | K52: 650000 | L52: 1210000 | M52: 650000 | N52: 1210000 | O52: 650000 | P52: 1210000 | Q52: 650000
A53: 48 | B53: － | C53: 1270000 | D53: 650000 | E53: 1295000 | F53: 1270000 | G53: 650000 | H53: 1270000 | I53: 650000 | J53: 1270000 | K53: 650000 | L53: 1270000 | M53: 650000 | N53: 1270000 | O53: 650000 | P53: 1270000 | Q53: 650000
A54: 49 | B54: － | C54: 1330000 | D54: 650000 | E54: 1355000 | F54: =IF(F$4<$E54,$C54,"") -> 1330000 | G54: 650000 | H54: 1330000 | I54: 650000 | J54: 1330000 | K54: 650000 | L54: 1330000 | M54: 650000 | N54: 1330000 | O54: 650000 | P54: 1330000 | Q54: 650000
A55: 50 | B55: － | C55: 1390000 | D55: 650000 | E55: 1355001 | F55: 1390000 | G55: 650000 | H55: 1390000 | I55: 650000 | J55: 1390000 | K55: 650000 | L55: 1390000 | M55: 650000 | N55: 1390000 | O55: 650000 | P55: 1390000 | Q55: 650000
F56: =MIN(F6:F55) -> 88000 | G56: 88000 | H56: 88000 | I56: 88000 | J56: 58000 | K56: 88000 | L56: 88000 | M56: 88000 | N56: 58000 | O56: 88000 | P56: 58000 | Q56: 88000
F57: =IF(F4=0,"",F56) -> 88000 | G57: =IF(F4=0,"",G56) -> 88000 | H57: =IF(H4=0,"",H56) -> 88000 | I57: =IF(H4=0,"",I56) -> 88000 | J57: =IF(J4=0,"",J56) -> 58000 | K57: =IF(J4=0,"",K56) -> 88000 | L57: =IF(L4=0,"",L56) -> 88000 | M57: =IF(L4=0,"",M56) -> 88000 | N57: =IF(N4=0,"",N56) ->  | O57: =IF(N4=0,"",O56) ->  | P57: =IF(P4=0,"",P56) ->  | Q57: =IF(P4=0,"",Q56) -> 

Sheet 売上・経費の法人への移替
A6: 個人事業の売上・経費のうち、法人に移す金額を入力します
A8: 個人事業の損益計算書 | I8: 法人に移る金額
B9: 科 目 | E9: 元の金額 | F9: 移し替える額 | G9: 変更後の金額 | J9: 科 目 | M9: 金額
B10: 売上金額 | D10: 1 | E10: =個人青色申告決算書!E12 -> 15800000 | F10: -6200000 | G10: =SUM(E10:F11) -> 9600000 | J10: =B10 -> 売上金額 | L10: 1 | M10: =-F10 -> 6200000
B12: 売上原価 | C12: 期首商品 | D12: 2 | E12: =個人青色申告決算書!E14 -> 0 | G12: =SUM(E12:F12) -> 0 | J12: 売上原価 | K12: =C12 -> 期首商品 | L12: 2 | M12: =-F12 -> 0
C13: 仕入高 | D13: 3 | E13: =個人青色申告決算書!E15 -> 0 | G13: =SUM(E13:F13) -> 0 | K13: 仕入高 | L13: 3 | M13: =-F13 -> 0
C14: 小計 | D14: 4 | E14: =SUM(E12:E13) -> 0 | G14: =SUM(G12:G13) -> 0 | K14: 小計 | L14: 4 | M14: =SUM(M12:M13) -> 0
C15: 期末商品 | D15: 5 | E15: =個人青色申告決算書!E17 -> 0 | G15: 0 | K15: =C15 -> 期末商品 | L15: 5 | M15: =-F15 -> 0
C16: 差引原価 | D16: 6 | E16: =E14-E15 -> 0 | G16: =G14-G15 -> 0 | K16: 差引原価 | L16: 6 | M16: =M14-M15 -> 0
B17: 差引金額 | D17: 7 | E17: =E10-E16 -> 15800000 | G17: =G10-G16 -> 9600000 | J17: 差引金額 | L17: 7 | M17: =M10-M16 -> 6200000
B18: 経 費 | C18: =IF(個人青色申告決算書!C21="","",個人青色申告決算書!C21) -> 租税公課 | D18: 8 | E18: =個人青色申告決算書!E21 -> 50000 | G18: 50000 | J18: 経 費 | K18: =C18 -> 租税公課 | L18: 8 | M18: =-F18 -> 0
C19: =IF(個人青色申告決算書!C22="","",個人青色申告決算書!C22) -> 荷造運賃 | D19: 9 | E19: =個人青色申告決算書!E22 -> 354600 | G19: 354600 | K19: =C19 -> 荷造運賃 | L19: 9 | M19: 0
C20: =IF(個人青色申告決算書!C23="","",個人青色申告決算書!C23) -> 水道光熱費 | D20: 10 | E20: =個人青色申告決算書!E23 -> 120852 | G20: 120852 | K20: 水道光熱費 | L20: 10 | M20: 0
C21: =IF(個人青色申告決算書!C24="","",個人青色申告決算書!C24) -> 旅費交通費 | D21: 11 | E21: =個人青色申告決算書!E24 -> 546717 | G21: 546717 | K21: 旅費交通費 | L21: 11 | M21: 0
C22: =IF(個人青色申告決算書!C25="","",個人青色申告決算書!C25) -> 通信費 | D22: 12 | E22: =個人青色申告決算書!E25 -> 376521 | G22: 376521 | K22: 通信費 | L22: 12 | M22: 0
C23: =IF(個人青色申告決算書!C26="","",個人青色申告決算書!C26) -> 広告宣伝費 | D23: 13 | E23: =個人青色申告決算書!E26 -> 323500 | G23: 323500 | K23: 広告宣伝費 | L23: 13 | M23: 0
C24: =IF(個人青色申告決算書!C27="","",個人青色申告決算書!C27) -> 接待交際費 | D24: 14 | E24: =個人青色申告決算書!E27 -> 450000 | G24: 450000 | K24: 接待交際費 | L24: 14 | M24: 0
C25: =IF(個人青色申告決算書!C28="","",個人青色申告決算書!C28) -> 損害保険料 | D25: 15 | E25: =個人青色申告決算書!E28 -> 20000 | G25: 20000 | K25: 損害保険料 | L25: 15 | M25: 0
C26: =IF(個人青色申告決算書!C29="","",個人青色申告決算書!C29) -> 修繕費 | D26: 16 | E26: =個人青色申告決算書!E29 -> 0 | G26: 0 | K26: 修繕費 | L26: 16 | M26: 0
C27: =IF(個人青色申告決算書!G12="","",個人青色申告決算書!G12) -> 消耗品費 | D27: 17 | E27: =個人青色申告決算書!I12 -> 750000 | G27: 750000 | K27: 消耗品費 | L27: 17 | M27: 0
C28: =IF(個人青色申告決算書!G13="","",個人青色申告決算書!G13) -> 減価償却費 | D28: 18 | E28: =個人青色申告決算書!I13 -> 300000 | G28: 300000 | K28: 減価償却費 | L28: 18 | M28: 0
C29: =IF(個人青色申告決算書!G14="","",個人青色申告決算書!G14) -> 福利厚生費 | D29: 19 | E29: =個人青色申告決算書!I14 -> 0 | G29: 0 | K29: 福利厚生費 | L29: 19 | M29: 0
C30: =IF(個人青色申告決算書!G15="","",個人青色申告決算書!G15) -> 給与賃金 | D30: 20 | E30: =個人青色申告決算書!I15 -> 0 | G30: 0 | K30: 給与賃金 | L30: 20 | M30: 0
C31: =IF(個人青色申告決算書!G16="","",個人青色申告決算書!G16) -> 外注工賃 | D31: 21 | E31: =個人青色申告決算書!I16 -> 1115810 | G31: 1115810 | K31: 外注工賃 | L31: 21 | M31: 0
C32: 利子割引料 | D32: 22 | E32: =個人青色申告決算書!I17 -> 0 | G32: 0 | K32: 利子割引料 | L32: 22 | M32: 0
C33: =IF(個人青色申告決算書!G18="","",個人青色申告決算書!G18) -> 貸倒金 | D33: 23 | E33: =個人青色申告決算書!I18 -> 430000 | G33: 430000 | K33: 貸倒金 | L33: 23 | M33: 0
C34: =IF(個人青色申告決算書!G19="","",個人青色申告決算書!G19) -> 支払手数料 | D34: 24 | E34: =個人青色申告決算書!I19 -> 0 | G34: 0 | K34: 支払手数料 | L34: 24 | M34: 0
C35: =IF(個人青色申告決算書!G20="","",個人青色申告決算書!G20) -> 車両費 | D35: 25 | E35: =個人青色申告決算書!I20 -> 600000 | G35: 600000 | K35: 車両費 | L35: 25 | M35: 0
C36: =IF(個人青色申告決算書!G21="","",個人青色申告決算書!G21) -> 消費税 | D36: 26 | E36: =個人青色申告決算書!I21 -> 250000 | G36: 250000 | K36: 消費税 | L36: 26 | M36: 0
C37: =IF(個人青色申告決算書!G22="","",個人青色申告決算書!G22) -> 税理士顧問料 | D37: 27 | E37: =個人青色申告決算書!I22 -> 330000 | G37: 330000 | K37: 税理士顧問料 | L37: 27 | M37: 0
C38: =IF(個人青色申告決算書!G23="","",個人青色申告決算書!G23) -> 賃借料 | D38: 28 | E38: =個人青色申告決算書!I23 -> 0 | G38: 0 | K38: 賃借料 | L38: 28 | M38: 0
C39: =IF(個人青色申告決算書!G24="","",個人青色申告決算書!G24) ->  | D39: 29 | E39: =個人青色申告決算書!I24 -> 0 | G39: 0 | L39: 29 | M39: 0
C40: =IF(個人青色申告決算書!G25="","",個人青色申告決算書!G25) ->  | D40: 30 | E40: =個人青色申告決算書!I25 -> 330000 | G40: 330000 | L40: 30 | M40: 0
C41: =IF(個人青色申告決算書!G26="","",個人青色申告決算書!G26) -> 雑費 | D41: 31 | E41: =個人青色申告決算書!I26 -> 182000 | G41: 182000 | K41: 雑費 | L41: 31 | M41: 0
C42: 計 | D42: 32 | E42: =SUM(E18:E41) -> 6530000 | G42: =SUM(G18:G41) -> 6530000 | K42: 計 | L42: 32 | M42: =SUM(M18:M41) -> 0
C43: 差引金額 | D43: 33 | E43: =SUM(E17-E42) -> 9270000 | G43: =SUM(G17-G42) -> 3070000 | K43: 差引金額 | L43: 33 | M43: =SUM(M17-M42) -> 6200000
A44: 各種引当金・準備金 | B44: 繰戻額等 | C44: =IF(個人青色申告決算書!L12="","",個人青色申告決算書!L12) -> 貸倒引当金 | D44: 34 | E44: =個人青色申告決算書!N12 -> 0 | G44: 0 | I44: 各種引当金・準備金 | J44: 繰戻額等 | K44: =C44 -> 貸倒引当金 | L44: 34 | M44: =-F44 -> 0
C45: =IF(個人青色申告決算書!L13="","",個人青色申告決算書!L13) ->  | D45: 35 | E45: =個人青色申告決算書!N13 -> 0 | G45: 0 | K45: =IF(個人青色申告決算書!T13="","",個人青色申告決算書!T13) ->  | L45: 35 | M45: =-F45 -> 0
C46: =IF(個人青色申告決算書!L14="","",個人青色申告決算書!L14) ->  | D46: 36 | E46: =個人青色申告決算書!N14 -> 0 | G46: 0 | K46: =IF(個人青色申告決算書!T14="","",個人青色申告決算書!T14) ->  | L46: 36 | M46: =-F46 -> 0
C47: 計 | D47: 37 | E47: =SUM(E44:E46) -> 0 | G47: =SUM(G44:G46) -> 0 | K47: 計 | L47: 37 | M47: =SUM(M44:M46) -> 0
B48: 繰入額等 | C48: =IF(個人青色申告決算書!L16="","",個人青色申告決算書!L16) -> 専従者給与 | D48: 38 | E48: =個人青色申告決算書!N16 -> 1020000 | G48: 1020000 | J48: 繰入額等 | K48: =C48 -> 専従者給与 | L48: 38 | M48: =-F48 -> 0
C49: =IF(個人青色申告決算書!L17="","",個人青色申告決算書!L17) -> 貸倒引当金 | D49: 39 | E49: =個人青色申告決算書!N17 -> 0 | G49: 0 | K49: =C49 -> 貸倒引当金 | L49: 39 | M49: =-F49 -> 0
C50: =IF(個人青色申告決算書!L18="","",個人青色申告決算書!L18) ->  | D50: 40 | E50: =個人青色申告決算書!N18 -> 0 | G50: 0 | K50: =C50 ->  | L50: 40 | M50: =-F50 -> 0
C51: =IF(個人青色申告決算書!L19="","",個人青色申告決算書!L19) ->  | D51: 41 | E51: =個人青色申告決算書!N19 -> 0 | G51: 0 | K51: =C51 ->  | L51: 41 | M51: =-F51 -> 0
C52: 計 | D52: 42 | E52: =SUM(E48:E51) -> 1020000 | G52: =SUM(G48:G51) -> 1020000 | K52: 計 | L52: 42 | M52: =SUM(M48:M51) -> 0
C53: 青色特別控除前の所得金額 | D53: 43 | E53: =SUM(E43+E47-E52) -> 8250000 | G53: =SUM(G43+G47-G52) -> 2050000 | K53: 青色特別控除前の所得金額 | L53: 43 | M53: =SUM(M43+M47-M52) -> 6200000

Sheet 税前ＰＬの組替
A6: 個人事業から法人への外注費などを入力し、それぞれの税引前利益をシミュレーションします
A8: 個人事業の損益計算書 | I8: 法人の損益計算書
B9: 科 目 | E9: 金 額 | F9: 調整額 | G9: 調整後の金額 | I9: 科 目 | K9: 金 額 | L9: 調整額 | M9: 調整後の金額
B10: 売上金額 | D10: 1 | E10: =売上・経費の法人への移替!G10 -> 9600000 | F10: 1200000 | G10: =SUM(E10:F11) -> 10800000 | I10: 売上金額 | K10: =売上・経費の法人への移替!M10 -> 6200000 | M10: =SUM(K10:L11) -> 6200000
K11: =IF(E11="","",E11) ->  | L11: =IF(F11="","",F11) ->  | M11: =IF(G11="","",G11) -> 
B12: 売上原価 | C12: 期首商品 | D12: 2 | E12: =売上・経費の法人への移替!G12 -> 0 | G12: =SUM(E12:F12) -> 0 | I12: 売上原価 | J12: 期首商品 | K12: =売上・経費の法人への移替!M12 -> 0 | M12: =SUM(K12:L12) -> 0
C13: 仕入高 | D13: 3 | E13: =売上・経費の法人への移替!G13 -> 0 | G13: =SUM(E13:F13) -> 0 | J13: 仕入高 | K13: =売上・経費の法人への移替!M13 -> 0 | M13: =SUM(K13:L13) -> 0
C14: 小計 | D14: 4 | E14: =SUM(E12:E13) -> 0 | G14: =SUM(G12:G13) -> 0 | J14: 小計 | K14: =SUM(K12:K13) -> 0 | M14: =SUM(M12:M13) -> 0
C15: 期末商品 | D15: 5 | E15: =売上・経費の法人への移替!G15 -> 0 | G15: =SUM(E15:F15) -> 0 | J15: 期末商品 | K15: =売上・経費の法人への移替!M15 -> 0 | M15: =SUM(K15:L15) -> 0
C16: 差引原価 | D16: 6 | E16: =E14-E15 -> 0 | G16: =G14-G15 -> 0 | J16: 差引原価 | K16: =K14-K15 -> 0 | M16: =M14-M15 -> 0
B17: 差引金額 | D17: 7 | E17: =E10-E16 -> 9600000 | G17: =G10-G16 -> 10800000 | I17: 売上総利益 | K17: =K10-K16 -> 6200000 | M17: =M10-M16 -> 6200000
B18: 経 費 | C18: =IF(経費の増減!C18="","",経費の増減!C18) -> 租税公課 | D18: 8 | E18: =売上・経費の法人への移替!G18 -> 50000 | G18: =SUM(E18:F18) -> 50000 | I18: 販売費及び一般管理費 | J18: =IF(C18="","",C18) -> 租税公課 | K18: =売上・経費の法人への移替!M18 -> 0 | M18: =SUM(K18:L18) -> 0
C19: =IF(経費の増減!C19="","",経費の増減!C19) -> 荷造運賃 | D19: 9 | E19: =売上・経費の法人への移替!G19 -> 354600 | G19: 354600 | J19: =IF(C19="","",C19) -> 荷造運賃 | K19: =売上・経費の法人への移替!M19 -> 0 | M19: 0
C20: =IF(経費の増減!C20="","",経費の増減!C20) -> 水道光熱費 | D20: 10 | E20: =売上・経費の法人への移替!G20 -> 120852 | G20: 120852 | J20: 水道光熱費 | K20: =売上・経費の法人への移替!M20 -> 0 | M20: 0
C21: =IF(経費の増減!C21="","",経費の増減!C21) -> 旅費交通費 | D21: 11 | E21: =売上・経費の法人への移替!G21 -> 546717 | G21: 546717 | J21: 旅費交通費 | K21: =売上・経費の法人への移替!M21 -> 0 | M21: 0
C22: =IF(経費の増減!C22="","",経費の増減!C22) -> 通信費 | D22: 12 | E22: =売上・経費の法人への移替!G22 -> 376521 | G22: 376521 | J22: 通信費 | K22: =売上・経費の法人への移替!M22 -> 0 | M22: 0
C23: =IF(経費の増減!C23="","",経費の増減!C23) -> 広告宣伝費 | D23: 13 | E23: =売上・経費の法人への移替!G23 -> 323500 | G23: 323500 | J23: 広告宣伝費 | K23: =売上・経費の法人への移替!M23 -> 0 | M23: 0
C24: =IF(経費の増減!C24="","",経費の増減!C24) -> 接待交際費 | D24: 14 | E24: =売上・経費の法人への移替!G24 -> 450000 | G24: 450000 | J24: 接待交際費 | K24: =売上・経費の法人への移替!M24 -> 0 | M24: 0
C25: =IF(経費の増減!C25="","",経費の増減!C25) -> 損害保険料 | D25: 15 | E25: =売上・経費の法人への移替!G25 -> 20000 | G25: 20000 | J25: 損害保険料 | K25: =売上・経費の法人への移替!M25 -> 0 | M25: 0
C26: =IF(経費の増減!C26="","",経費の増減!C26) -> 修繕費 | D26: 16 | E26: =売上・経費の法人への移替!G26 -> 0 | G26: 0 | J26: 修繕費 | K26: =売上・経費の法人への移替!M26 -> 0 | M26: 0
C27: =IF(経費の増減!C27="","",経費の増減!C27) -> 消耗品費 | D27: 17 | E27: =売上・経費の法人への移替!G27 -> 750000 | G27: 750000 | J27: 消耗品費 | K27: =売上・経費の法人への移替!M27 -> 0 | M27: 0
C28: =IF(経費の増減!C28="","",経費の増減!C28) -> 減価償却費 | D28: 18 | E28: =売上・経費の法人への移替!G28 -> 300000 | G28: 300000 | J28: 減価償却費 | K28: =売上・経費の法人への移替!M28 -> 0 | M28: 0
C29: =IF(経費の増減!C29="","",経費の増減!C29) -> 福利厚生費 | D29: 19 | E29: =売上・経費の法人への移替!G29 -> 0 | G29: 0 | J29: 福利厚生費 | K29: =売上・経費の法人への移替!M29 -> 0 | M29: 0
C30: =IF(経費の増減!C30="","",経費の増減!C30) -> 給与賃金 | D30: 20 | E30: =売上・経費の法人への移替!G30 -> 0 | G30: 0 | J30: 給与賃金 | K30: =売上・経費の法人への移替!M30 -> 0 | M30: 0
C31: =IF(経費の増減!C31="","",経費の増減!C31) -> 外注工賃 | D31: 21 | E31: =売上・経費の法人への移替!G31 -> 1115810 | G31: 1115810 | J31: 外注工賃 | K31: =売上・経費の法人への移替!M31 -> 0 | M31: 0
C32: =IF(経費の増減!C32="","",経費の増減!C32) -> 利子割引料 | D32: 22 | E32: =売上・経費の法人への移替!G32 -> 0 | G32: 0 | J32: 利子割引料 | K32: =売上・経費の法人への移替!M32 -> 0 | M32: 0
C33: =IF(経費の増減!C33="","",経費の増減!C33) -> 貸倒金 | D33: 23 | E33: =売上・経費の法人への移替!G33 -> 430000 | G33: 430000 | J33: 貸倒金 | K33: =売上・経費の法人への移替!M33 -> 0 | M33: 0
C34: =IF(経費の増減!C34="","",経費の増減!C34) -> 支払手数料 | D34: 24 | E34: =売上・経費の法人への移替!G34 -> 0 | G34: 0 | J34: 支払手数料 | K34: =売上・経費の法人への移替!M34 -> 0 | M34: 0
C35: =IF(経費の増減!C35="","",経費の増減!C35) -> 車両費 | D35: 25 | E35: =売上・経費の法人への移替!G35 -> 600000 | G35: 600000 | J35: 車両費 | K35: =売上・経費の法人への移替!M35 -> 0 | M35: 0
C36: =IF(経費の増減!C36="","",経費の増減!C36) -> 消費税 | D36: 26 | E36: =売上・経費の法人への移替!G36 -> 250000 | G36: 250000 | J36: 消費税 | K36: =売上・経費の法人への移替!M36 -> 0 | M36: 0
C37: =IF(経費の増減!C37="","",経費の増減!C37) -> 税理士顧問料 | D37: 27 | E37: =売上・経費の法人への移替!G37 -> 330000 | G37: 330000 | J37: 税理士顧問料 | K37: =売上・経費の法人への移替!M37 -> 0 | M37: 0
C38: =IF(経費の増減!C38="","",経費の増減!C38) -> 賃借料 | D38: 28 | E38: =売上・経費の法人への移替!G38 -> 0 | G38: 0 | J38: 賃借料 | K38: =売上・経費の法人への移替!M38 -> 0 | L38: 1200000 | M38: 1200000
C39: =IF(経費の増減!C39="","",経費の増減!C39) ->  | D39: 29 | E39: =売上・経費の法人への移替!G39 -> 0 | G39: 0 | K39: =売上・経費の法人への移替!M39 -> 0 | M39: 0
C40: =IF(経費の増減!C40="","",経費の増減!C40) ->  | D40: 30 | E40: =売上・経費の法人への移替!G40 -> 330000 | G40: 330000 | K40: =売上・経費の法人への移替!M40 -> 0 | M40: 0
C41: =IF(経費の増減!C41="","",経費の増減!C41) -> 雑費 | D41: 31 | E41: =売上・経費の法人への移替!G41 -> 182000 | G41: 182000 | J41: 雑費 | K41: =売上・経費の法人への移替!M41 -> 0 | M41: 0
C42: 計 | D42: 32 | E42: =SUM(E18:E41) -> 6530000 | G42: =SUM(G18:G41) -> 6530000 | J42: 法定福利費 | K42: =給与の情報!R43 -> 162456 | M42: 162456
C43: 差引金額 | D43: 33 | E43: =SUM(E17-E42) -> 3070000 | G43: =SUM(G17-G42) -> 4270000 | J43: 役員報酬 | K43: =給与の情報!R12 -> 3738000 | M43: 3738000
A44: 各種引当金・準備金 | B44: 繰戻額等 | C44: =IF(経費の増減!C44="","",経費の増減!C44) -> 貸倒引当金 | D44: 34 | E44: =売上・経費の法人への移替!G44 -> 0 | G44: =SUM(E44:F44) -> 0 | J44: 貸倒引当金繰入額 | K44: =売上・経費の法人への移替!M44 -> 0 | M44: 0
C45: =IF(経費の増減!C45="","",経費の増減!C45) ->  | D45: 35 | E45: =売上・経費の法人への移替!G45 -> 0 | G45: =SUM(E45:F45) -> 0 | J45: 販売費及び一般管理費計 | K45: =SUM(K18:K44) -> 3900456 | M45: =SUM(M18:M44) -> 5100456
C46: =IF(経費の増減!C46="","",経費の増減!C46) ->  | D46: 36 | E46: =売上・経費の法人への移替!G46 -> 0 | G46: =SUM(E46:F46) -> 0 | I46: 営業利益 | K46: =K17-K45 -> 2299544 | M46: =M17-M45 -> 1099544
C47: 計 | D47: 37 | E47: =SUM(E44:E46) -> 0 | G47: =SUM(G44:G46) -> 0 | I47: 営外収益 | M47: =SUM(K47:L47) -> 0
B48: 繰入額等 | C48: =IF(経費の増減!C48="","",経費の増減!C48) -> 専従者給与 | D48: 38 | E48: =売上・経費の法人への移替!G48 -> 1020000 | G48: =SUM(E48:F48) -> 1020000 | M48: =SUM(K48:L48) -> 0
C49: =IF(経費の増減!C49="","",経費の増減!C49) -> 貸倒引当金 | D49: 39 | E49: =売上・経費の法人への移替!G49 -> 0 | G49: =SUM(E49:F49) -> 0 | M49: =SUM(K49:L49) -> 0
C50: =IF(経費の増減!C50="","",経費の増減!C50) ->  | D50: 40 | E50: =売上・経費の法人への移替!G50 -> 0 | G50: =SUM(E50:F50) -> 0 | J50: 計 | K50: =SUM(K47:K49) -> 0 | M50: =SUM(M47:M49) -> 0
C51: =IF(経費の増減!C51="","",経費の増減!C51) ->  | D51: 41 | E51: =売上・経費の法人への移替!G51 -> 0 | G51: =SUM(E51:F51) -> 0 | I51: 営外費用 | M51: =SUM(K51:L51) -> 0
C52: 計 | D52: 42 | E52: =SUM(E48:E51) -> 1020000 | G52: =SUM(G48:G51) -> 1020000 | M52: =SUM(K52:L52) -> 0
C53: 青色特別控除前の所得金額 | D53: 43 | E53: =SUM(E43+E47-E52) -> 2050000 | G53: =SUM(G43+G47-G52) -> 3250000 | M53: =SUM(K53:L53) -> 0
J54: 計 | K54: =SUM(K51:K53) -> 0 | M54: =SUM(M51:M53) -> 0
I55: 経常利益 | K55: =K46+K50-K54 -> 2299544 | M55: =M46+M50-M54 -> 1099544
A56: ※法人・個人間での外注などの取引金額を入力します。 | I56: 特別利益 | M56: =SUM(K56:L56) -> 0
M57: =SUM(K57:L57) -> 0
J58: 計 | K58: =SUM(K56:K57) -> 0 | M58: =SUM(M56:M57) -> 0
I59: 特別損失 | M59: =SUM(K59:L59) -> 0
M60: =SUM(K60:L60) -> 0
J61: 計 | K61: =SUM(K59:K60) -> 0 | M61: =SUM(M59:M60) -> 0
I62: 税引前当期純利益 | K62: =K55+K58-K61 -> 2299544 | M62: =M55+M58-M61 -> 1099544

Sheet 法人税シミュレーション
A5: １、所得の計算（別表４） | E5: ２、 法人税の計算 | H5: ５、県民税の計算 | K5: ６、納税見込額
A6: ="税引前当期利益" -> 税引前当期利益 | C6: =税前ＰＬの組替!M62 -> 1099544 | E6: 所得金額 | F6: =C35 -> 1099544 | H6: 法人事業税 | K6: 法人税 | L6: =F15 -> 164800
A7: 加 算 | E7: 800万以下の金額 | F7: =IF(F6<=0,0,IF($F$6<=8000000,ROUNDDOWN($F$6/1000,0)*1000,8000000)) -> 1099000 | H7: 400万以下の金額 | I7: =IF(F6<=0,0,IF($F$6<=4000000,ROUNDDOWN($F$6/1000,0)*1000,4000000)) -> 1099000 | K7: 地方法人税 | L7: =F21 -> 16800
E8: 800万超の金額 | F8: =IF($F$6>8000000,ROUNDDOWN(($F$6-8000000)/1000,0)*1000,0) -> 0 | H8: 800万以下の金額 | I8: =IF($F$6<=4000000,0,IF($F$6<=8000000,ROUNDDOWN(($F$6-4000000)/1000,0)*1000,4000000)) -> 0 | K8: =H16 -> 法人事業税 | L8: =I16 -> 38400
E9: 800万までの税率 | F9: 0.15 | H9: 800万超の金額 | I9: =IF(F6<=8000000,0,ROUNDDOWN((F6-8000000)/1000,0)*1000) -> 0 | K9: =H23 -> 法人県民税 | L9: =I23 -> 21600
E10: 800万超の税率 | F10: 0.234 | H10: 400万以下の税率 | I10: 0.035 | K10: =H35 -> 特別法人事業税 | L10: =I35 -> 14200
E11: 800万までの税額 | F11: =ROUNDDOWN((F7*F9)/100,0)*100 -> 164800 | H11: 800万以下の税率 | I11: 0.053 | K11: =E31 -> 法人市民税 | L11: =F31 -> 59800
E12: 800万超の税額 | F12: =ROUNDDOWN((F8*F10)/100,0)*100 -> 0 | H12: 800万超の税率 | I12: 0.07 | K12: 合計納税額 | L12: =SUM(L6:L11) -> 315600
E13: 法人税額 | F13: =SUM(F11:F12) -> 164800 | H13: 400万以下の税額 | I13: =ROUNDDOWN(I7*I10/100,0)*100 -> 38400
E14: 法人税額特別控除額 | H14: 800万以下の税額 | I14: =ROUNDDOWN(I8*I11/100,0)*100 -> 0
E15: 差引法人税額 | F15: =ROUNDDOWN(SUM(F13-F14),-2) -> 164800 | H15: 800万超の税額 | I15: =ROUNDDOWN(I9*I12/100,0)*100 -> 0
H16: 法人事業税 | I16: =SUM(I13:I15) -> 38400
E17: ３、地方法人税の計算 | H17: 法人県民税
E18: 法人税割 | H18: 法人税額 | I18: =ROUNDDOWN(F15/1000,0)*1000 -> 164000
B19: ="加算小計" -> 加算小計 | C19: =SUM(C7:C18) -> 0 | E19: =H18 -> 法人税額 | F19: =I18 -> 164000 | H19: 法人税割税率 | I19: 0.01
A20: 減 算 | E20: 税率 | F20: 0.103 | H20: 法人税割額 | I20: =ROUNDDOWN((I18*I19)/100,0)*100 -> 1600
E21: 地方法人税額 | F21: =ROUNDDOWN(F19*F20/100,0)*100 -> 16800 | H21: 法人均等割額 | I21: 20000
H22: 法人税均等割 | I22: =SUM(I21) -> 20000
E23: ４、市民税の計算 | H23: 法人県民税 | I23: =I20+I22 -> 21600
E24: 法人税割 | H24: 特別法人事業税（国税）
E25: =E13 -> 法人税額 | F25: =ROUNDDOWN(F15/1000,0)*1000 -> 164000 | H25: 400万以下の金額 | I25: =IF(F6<=0,0,IF($F$6<=4000000,ROUNDDOWN($F$6/1000,0)*1000,4000000)) -> 1099000
E26: 法人税割税率 | F26: 0.06 | H26: 800万以下の金額 | I26: =IF($F$6<=4000000,0,IF($F$6<=8000000,ROUNDDOWN(($F$6-4000000)/1000,0)*1000,4000000)) -> 0
E27: 法人税割税額 | F27: =ROUNDDOWN(F25*F26/100,0)*100 -> 9800 | H27: 800万超の金額 | I27: =IF(F6<=8000000,0,ROUNDDOWN((F6-8000000)/1000,0)*1000) -> 0
E28: 法人税均等割 | H28: 400万以下の税率 | I28: 0.035
E29: 法人均等割額 | F29: 50000 | H29: 800万以下の税率 | I29: 0.053
E30: 法人税均等割 | F30: =SUM(F29) -> 50000 | H30: 800万超の税率 | I30: 0.07
E31: 法人市民税 | F31: =F27+F30 -> 59800 | H31: 400万以下の税額 | I31: =ROUNDDOWN(I25*I28/100,0)*100 -> 38400
B32: 減算小計 | C32: =SUM(C20:C31) -> 0 | H32: 800万以下の税額 | I32: =ROUNDDOWN(I26*I29/100,0)*100 -> 0
A33: 今期予測所得金額 | C33: =C6+C19-C32 -> 1099544 | H33: 800万超の税額 | I33: =ROUNDDOWN(I27*I30/100,0)*100 -> 0
A34: 繰越欠損金額 | H34: 基準法人所得割額 | I34: =SUM(I31:I33) -> 38400
A35: 所得金額再計 | C35: =IF(C33-C34<0,0,C33-C34) -> 1099544 | H35: 特別法人事業税 | I35: =ROUNDDOWN(I34*0.37,-2) -> 14200

Sheet まとめ
A4: =個人青色申告決算書!L7&"様" -> 今野 友夫様 | R4: 小林敬幸税理士事務所
A5: 法人を設立し、個人事業と法人に所得を分散した場合の負担額変化シミュレーション
A7: １．損益計算書の比較 | N7: ２、税金と社会保険料負担額の変化
A9: 現在の個人事業の損益計算書 | F9: 法人設立後の個人事業の損益計算書 | J9: 法人設立後の法人の損益計算書 | N9: 現在の個人事業の税金・社会保険料 | Q9: 法人設立後の税金・社会保険料
A10: 科 目 | D10: 金 額 | F10: 科 目 | I10: 金 額 | J10: 科 目 | L10: 金 額
A11: 売上金額 | C11: 1 | D11: =経費の増減!E10 -> 15800000 | F11: 売上金額 | H11: 1 | I11: =税前ＰＬの組替!G10 -> 10800000 | J11: 売上金額 | L11: =税前ＰＬの組替!M10 -> 6200000 | N11: ①事業主の税金 | Q11: ①個人事業の税金
L12: =IF(D12="","",D12) ->  | N12: 所得税 | O12: =事業主の所得税申告状況!C34 -> 476400 | Q12: 所得税 | R12: =事業主の所得税申告状況!E34 -> 0
A13: 売上原価 | B13: 期首商品 | C13: 2 | D13: =経費の増減!E12 -> 0 | F13: 売上原価 | G13: 期首商品 | H13: 2 | I13: =税前ＰＬの組替!G12 -> 0 | J13: 売上原価 | K13: 期首商品 | L13: =税前ＰＬの組替!M12 -> 0 | N13: 住民税 | O13: =事業主の所得税申告状況!C37 -> 594000 | Q13: 住民税 | R13: =事業主の所得税申告状況!E37 -> 14600
B14: 仕入高 | C14: 3 | D14: =経費の増減!E13 -> 0 | G14: 仕入高 | H14: 3 | I14: =税前ＰＬの組替!G13 -> 0 | K14: 仕入高 | L14: =税前ＰＬの組替!M13 -> 0 | N14: 事業税 | O14: =事業主の所得税申告状況!C38 -> 267500 | Q14: 事業税 | R14: =事業主の所得税申告状況!E38 -> 17500
B15: 小計 | C15: 4 | D15: =経費の増減!E14 -> 0 | G15: 小計 | H15: 4 | I15: =税前ＰＬの組替!G14 -> 0 | K15: 小計 | L15: =税前ＰＬの組替!M14 -> 0 | N15: 合計 | O15: =SUM(O12:O14) -> 1337900 | Q15: 合計 | R15: =SUM(R12:R14) -> 32100
B16: 期末商品 | C16: 5 | D16: =経費の増減!E15 -> 0 | G16: 期末商品 | H16: 5 | I16: =税前ＰＬの組替!G15 -> 0 | K16: 期末商品 | L16: =税前ＰＬの組替!M15 -> 0
B17: 差引原価 | C17: 6 | D17: =経費の増減!E16 -> 0 | G17: 差引原価 | H17: 6 | I17: =税前ＰＬの組替!G16 -> 0 | K17: 差引原価 | L17: =税前ＰＬの組替!M16 -> 0 | Q17: ②法人の税金
A18: 差引金額 | C18: 7 | D18: =経費の増減!E17 -> 15800000 | F18: 差引金額 | H18: 7 | I18: =税前ＰＬの組替!G17 -> 10800000 | J18: 売上総利益 | L18: =税前ＰＬの組替!M17 -> 6200000 | Q18: 法人税 | R18: =法人税シミュレーション!L6+法人税シミュレーション!L7 -> 181600
A19: 経 費 | B19: =IF(税前ＰＬの組替!C18="","",税前ＰＬの組替!C18) -> 租税公課 | C19: 8 | D19: =経費の増減!E18 -> 50000 | F19: 経 費 | G19: =IF(税前ＰＬの組替!C18="","",税前ＰＬの組替!C18) -> 租税公課 | H19: 8 | I19: =税前ＰＬの組替!G18 -> 50000 | J19: 販売費及び一般管理費 | K19: =IF(税前ＰＬの組替!J18="","",税前ＰＬの組替!J18) -> 租税公課 | L19: =税前ＰＬの組替!M18 -> 0 | Q19: 法人事業税 | R19: =法人税シミュレーション!L8 -> 38400
B20: =IF(税前ＰＬの組替!C19="","",税前ＰＬの組替!C19) -> 荷造運賃 | C20: 9 | D20: =経費の増減!E19 -> 354600 | G20: =IF(税前ＰＬの組替!C19="","",税前ＰＬの組替!C19) -> 荷造運賃 | H20: 9 | I20: =税前ＰＬの組替!G19 -> 354600 | K20: =IF(税前ＰＬの組替!J19="","",税前ＰＬの組替!J19) -> 荷造運賃 | L20: =税前ＰＬの組替!M19 -> 0 | Q20: 法人県民税 | R20: =法人税シミュレーション!L9 -> 21600
B21: =IF(税前ＰＬの組替!C20="","",税前ＰＬの組替!C20) -> 水道光熱費 | C21: 10 | D21: =経費の増減!E20 -> 120852 | G21: =IF(税前ＰＬの組替!C20="","",税前ＰＬの組替!C20) -> 水道光熱費 | H21: 10 | I21: =税前ＰＬの組替!G20 -> 120852 | K21: =IF(税前ＰＬの組替!J20="","",税前ＰＬの組替!J20) -> 水道光熱費 | L21: =税前ＰＬの組替!M20 -> 0 | Q21: 特別法人事業税 | R21: =法人税シミュレーション!L10 -> 14200
B22: =IF(税前ＰＬの組替!C21="","",税前ＰＬの組替!C21) -> 旅費交通費 | C22: 11 | D22: =経費の増減!E21 -> 546717 | G22: =IF(税前ＰＬの組替!C21="","",税前ＰＬの組替!C21) -> 旅費交通費 | H22: 11 | I22: =税前ＰＬの組替!G21 -> 546717 | K22: =IF(税前ＰＬの組替!J21="","",税前ＰＬの組替!J21) -> 旅費交通費 | L22: =税前ＰＬの組替!M21 -> 0 | Q22: 法人市民税 | R22: =法人税シミュレーション!L11 -> 59800
B23: =IF(税前ＰＬの組替!C22="","",税前ＰＬの組替!C22) -> 通信費 | C23: 12 | D23: =経費の増減!E22 -> 376521 | G23: =IF(税前ＰＬの組替!C22="","",税前ＰＬの組替!C22) -> 通信費 | H23: 12 | I23: =税前ＰＬの組替!G22 -> 376521 | K23: =IF(税前ＰＬの組替!J22="","",税前ＰＬの組替!J22) -> 通信費 | L23: =税前ＰＬの組替!M22 -> 0 | Q23: 合計 | R23: =SUM(R18:R22) -> 315600
B24: =IF(税前ＰＬの組替!C23="","",税前ＰＬの組替!C23) -> 広告宣伝費 | C24: 13 | D24: =経費の増減!E23 -> 323500 | G24: =IF(税前ＰＬの組替!C23="","",税前ＰＬの組替!C23) -> 広告宣伝費 | H24: 13 | I24: =税前ＰＬの組替!G23 -> 323500 | K24: =IF(税前ＰＬの組替!J23="","",税前ＰＬの組替!J23) -> 広告宣伝費 | L24: =税前ＰＬの組替!M23 -> 0
B25: =IF(税前ＰＬの組替!C24="","",税前ＰＬの組替!C24) -> 接待交際費 | C25: 14 | D25: =経費の増減!E24 -> 450000 | G25: =IF(税前ＰＬの組替!C24="","",税前ＰＬの組替!C24) -> 接待交際費 | H25: 14 | I25: =税前ＰＬの組替!G24 -> 450000 | K25: =IF(税前ＰＬの組替!J24="","",税前ＰＬの組替!J24) -> 接待交際費 | L25: =税前ＰＬの組替!M24 -> 0 | N25: ②専従者の税金 | Q25: ③事業主と家族従業員の給与の税金
B26: =IF(税前ＰＬの組替!C25="","",税前ＰＬの組替!C25) -> 損害保険料 | C26: 15 | D26: =経費の増減!E25 -> 20000 | G26: =IF(税前ＰＬの組替!C25="","",税前ＰＬの組替!C25) -> 損害保険料 | H26: 15 | I26: =税前ＰＬの組替!G25 -> 20000 | K26: =IF(税前ＰＬの組替!J25="","",税前ＰＬの組替!J25) -> 損害保険料 | L26: =税前ＰＬの組替!M25 -> 0 | N26: 所得税 | O26: =給与の情報!J36 -> 0 | Q26: 所得税 | R26: =給与の情報!R36 -> 0
B27: =IF(税前ＰＬの組替!C26="","",税前ＰＬの組替!C26) -> 修繕費 | C27: 16 | D27: =経費の増減!E26 -> 0 | G27: =IF(税前ＰＬの組替!C26="","",税前ＰＬの組替!C26) -> 修繕費 | H27: 16 | I27: =税前ＰＬの組替!G26 -> 0 | K27: =IF(税前ＰＬの組替!J26="","",税前ＰＬの組替!J26) -> 修繕費 | L27: =税前ＰＬの組替!M26 -> 0 | N27: 住民税 | O27: =給与の情報!J39 -> 0 | Q27: 住民税 | R27: =給与の情報!R39 -> 5000
B28: =IF(税前ＰＬの組替!C27="","",税前ＰＬの組替!C27) -> 消耗品費 | C28: 17 | D28: =経費の増減!E27 -> 750000 | G28: =IF(税前ＰＬの組替!C27="","",税前ＰＬの組替!C27) -> 消耗品費 | H28: 17 | I28: =税前ＰＬの組替!G27 -> 750000 | K28: =IF(税前ＰＬの組替!J27="","",税前ＰＬの組替!J27) -> 消耗品費 | L28: =税前ＰＬの組替!M27 -> 0 | N28: 合計 | O28: =SUM(O26:O27) -> 0 | Q28: 合計 | R28: =SUM(R26:R27) -> 5000
B29: =IF(税前ＰＬの組替!C28="","",税前ＰＬの組替!C28) -> 減価償却費 | C29: 18 | D29: =経費の増減!E28 -> 300000 | G29: =IF(税前ＰＬの組替!C28="","",税前ＰＬの組替!C28) -> 減価償却費 | H29: 18 | I29: =税前ＰＬの組替!G28 -> 300000 | K29: =IF(税前ＰＬの組替!J28="","",税前ＰＬの組替!J28) -> 減価償却費 | L29: =税前ＰＬの組替!M28 -> 0
B30: =IF(税前ＰＬの組替!C29="","",税前ＰＬの組替!C29) -> 福利厚生費 | C30: 19 | D30: =経費の増減!E29 -> 0 | G30: =IF(税前ＰＬの組替!C29="","",税前ＰＬの組替!C29) -> 福利厚生費 | H30: 19 | I30: =税前ＰＬの組替!G29 -> 0 | K30: =IF(税前ＰＬの組替!J29="","",税前ＰＬの組替!J29) -> 福利厚生費 | L30: =税前ＰＬの組替!M29 -> 0 | N30: 税金合計 | O30: =SUM(O15,O28) -> 1337900 | Q30: 税金合計 | R30: =SUM(R15,R23,R28) -> 352700
B31: =IF(税前ＰＬの組替!C30="","",税前ＰＬの組替!C30) -> 給与賃金 | C31: 20 | D31: =経費の増減!E30 -> 0 | G31: =IF(税前ＰＬの組替!C30="","",税前ＰＬの組替!C30) -> 給与賃金 | H31: 20 | I31: =税前ＰＬの組替!G30 -> 0 | K31: =IF(税前ＰＬの組替!J30="","",税前ＰＬの組替!J30) -> 給与賃金 | L31: =税前ＰＬの組替!M30 -> 0
B32: =IF(税前ＰＬの組替!C31="","",税前ＰＬの組替!C31) -> 外注工賃 | C32: 21 | D32: =経費の増減!E31 -> 1115810 | G32: =IF(税前ＰＬの組替!C31="","",税前ＰＬの組替!C31) -> 外注工賃 | H32: 21 | I32: =税前ＰＬの組替!G31 -> 1115810 | K32: =IF(税前ＰＬの組替!J31="","",税前ＰＬの組替!J31) -> 外注工賃 | L32: =税前ＰＬの組替!M31 -> 0 | N32: ③社会保険料 | Q32: ④社会保険料
B33: =IF(税前ＰＬの組替!C32="","",税前ＰＬの組替!C32) -> 利子割引料 | C33: 22 | D33: =経費の増減!E32 -> 0 | G33: =IF(税前ＰＬの組替!C32="","",税前ＰＬの組替!C32) -> 利子割引料 | H33: 22 | I33: =税前ＰＬの組替!G32 -> 0 | K33: =IF(税前ＰＬの組替!J32="","",税前ＰＬの組替!J32) -> 利子割引料 | L33: =税前ＰＬの組替!M32 -> 0 | N33: 国民健康保険料 | O33: =事業主の所得税申告状況!C16 -> 530000 | Q33: 法人負担保険料 | R33: =給与の情報!R43 -> 162456
B34: =IF(税前ＰＬの組替!C33="","",税前ＰＬの組替!C33) -> 貸倒金 | C34: 23 | D34: =経費の増減!E33 -> 430000 | G34: =IF(税前ＰＬの組替!C33="","",税前ＰＬの組替!C33) -> 貸倒金 | H34: 23 | I34: =税前ＰＬの組替!G33 -> 430000 | K34: =IF(税前ＰＬの組替!J33="","",税前ＰＬの組替!J33) -> 貸倒金 | L34: =税前ＰＬの組替!M33 -> 0 | N34: 事業主の国民年金 | O34: =事業主の所得税申告状況!C17 -> 170000 | Q34: 事業主・従業員負担保険料 | R34: =給与の情報!R44 -> 158664
B35: =IF(税前ＰＬの組替!C34="","",税前ＰＬの組替!C34) -> 支払手数料 | C35: 24 | D35: =経費の増減!E34 -> 0 | G35: =IF(税前ＰＬの組替!C34="","",税前ＰＬの組替!C34) -> 支払手数料 | H35: 24 | I35: =税前ＰＬの組替!G34 -> 0 | K35: =IF(税前ＰＬの組替!J34="","",税前ＰＬの組替!J34) -> 支払手数料 | L35: =税前ＰＬの組替!M34 -> 0 | N35: 専従者の国民年金 | O35: =給与の情報!J21 -> 0
B36: =IF(税前ＰＬの組替!C35="","",税前ＰＬの組替!C35) -> 車両費 | C36: 25 | D36: =経費の増減!E35 -> 600000 | G36: =IF(税前ＰＬの組替!C35="","",税前ＰＬの組替!C35) -> 車両費 | H36: 25 | I36: =税前ＰＬの組替!G35 -> 600000 | K36: =IF(税前ＰＬの組替!J35="","",税前ＰＬの組替!J35) -> 車両費 | L36: =税前ＰＬの組替!M35 -> 0 | N36: 合計 | O36: =SUM(O33:O35) -> 700000 | Q36: 専従者の国民健康保険料 | R36: =給与の情報!J20 -> 0
B37: =IF(税前ＰＬの組替!C36="","",税前ＰＬの組替!C36) -> 消費税 | C37: 26 | D37: =経費の増減!E36 -> 250000 | G37: =IF(税前ＰＬの組替!C36="","",税前ＰＬの組替!C36) -> 消費税 | H37: 26 | I37: =税前ＰＬの組替!G36 -> 250000 | K37: =IF(税前ＰＬの組替!J36="","",税前ＰＬの組替!J36) -> 消費税 | L37: =税前ＰＬの組替!M36 -> 0 | Q37: 専従者の国民年金 | R37: =給与の情報!J21 -> 0
B38: =IF(税前ＰＬの組替!C37="","",税前ＰＬの組替!C37) -> 税理士顧問料 | C38: 27 | D38: =経費の増減!E37 -> 330000 | G38: =IF(税前ＰＬの組替!C37="","",税前ＰＬの組替!C37) -> 税理士顧問料 | H38: 27 | I38: =税前ＰＬの組替!G37 -> 330000 | K38: =IF(税前ＰＬの組替!J37="","",税前ＰＬの組替!J37) -> 税理士顧問料 | L38: =税前ＰＬの組替!M37 -> 0 | Q38: 合計 | R38: =SUM(R33:R37) -> 321120
B39: =IF(税前ＰＬの組替!C38="","",税前ＰＬの組替!C38) -> 賃借料 | C39: 28 | D39: =経費の増減!E38 -> 0 | G39: =IF(税前ＰＬの組替!C38="","",税前ＰＬの組替!C38) -> 賃借料 | H39: 28 | I39: =税前ＰＬの組替!G38 -> 0 | K39: =IF(税前ＰＬの組替!J38="","",税前ＰＬの組替!J38) -> 賃借料 | L39: =税前ＰＬの組替!M38 -> 1200000
B40: =IF(税前ＰＬの組替!C39="","",税前ＰＬの組替!C39) ->  | C40: 29 | D40: =経費の増減!E39 -> 0 | G40: =IF(税前ＰＬの組替!C39="","",税前ＰＬの組替!C39) ->  | H40: 29 | I40: =税前ＰＬの組替!G39 -> 0 | K40: =IF(税前ＰＬの組替!J39="","",税前ＰＬの組替!J39) ->  | L40: =税前ＰＬの組替!M39 -> 0 | N40: 総合計 | O40: =SUM(O30,O36) -> 2037900 | Q40: 総合計 | R40: =SUM(R30,R38) -> 673820
B41: =IF(税前ＰＬの組替!C40="","",税前ＰＬの組替!C40) ->  | C41: 30 | D41: =経費の増減!E40 -> 330000 | G41: =IF(税前ＰＬの組替!C40="","",税前ＰＬの組替!C40) ->  | H41: 30 | I41: =税前ＰＬの組替!G40 -> 330000 | K41: =IF(税前ＰＬの組替!J40="","",税前ＰＬの組替!J40) ->  | L41: =税前ＰＬの組替!M40 -> 0
B42: =IF(税前ＰＬの組替!C41="","",税前ＰＬの組替!C41) -> 雑費 | C42: 31 | D42: =経費の増減!E41 -> 182000 | G42: =IF(税前ＰＬの組替!C41="","",税前ＰＬの組替!C41) -> 雑費 | H42: 31 | I42: =税前ＰＬの組替!G41 -> 182000 | K42: =IF(税前ＰＬの組替!J41="","",税前ＰＬの組替!J41) -> 雑費 | L42: =税前ＰＬの組替!M41 -> 0 | N42: 法人設立後の税金と社会保険料負担額の比較グラフ
B43: 計 | C43: 32 | D43: =経費の増減!E42 -> 6530000 | G43: 計 | H43: 32 | I43: =税前ＰＬの組替!G42 -> 6530000 | K43: =IF(税前ＰＬの組替!J42="","",税前ＰＬの組替!J42) -> 法定福利費 | L43: =税前ＰＬの組替!M42 -> 162456
B44: 差引金額 | C44: 33 | D44: =経費の増減!E43 -> 9270000 | G44: 差引金額 | H44: 33 | I44: =税前ＰＬの組替!G43 -> 4270000 | K44: =IF(税前ＰＬの組替!J43="","",税前ＰＬの組替!J43) -> 役員報酬 | L44: =税前ＰＬの組替!M43 -> 3738000
A45: 繰戻額等 | B45: =IF(税前ＰＬの組替!C44="","",税前ＰＬの組替!C44) -> 貸倒引当金 | C45: 34 | D45: =経費の増減!E44 -> 0 | F45: 繰戻額等 | G45: =IF(税前ＰＬの組替!C44="","",税前ＰＬの組替!C44) -> 貸倒引当金 | H45: 34 | I45: =税前ＰＬの組替!G44 -> 0 | K45: =IF(税前ＰＬの組替!J44="","",税前ＰＬの組替!J44) -> 貸倒引当金繰入額 | L45: =税前ＰＬの組替!M44 -> 0
B46: =IF(税前ＰＬの組替!C45="","",税前ＰＬの組替!C45) ->  | C46: 35 | D46: =経費の増減!E45 -> 0 | G46: =IF(税前ＰＬの組替!C45="","",税前ＰＬの組替!C45) ->  | H46: 35 | I46: =税前ＰＬの組替!G45 -> 0 | K46: 販売費及び一般管理費計 | L46: =税前ＰＬの組替!M45 -> 5100456
B47: =IF(税前ＰＬの組替!C46="","",税前ＰＬの組替!C46) ->  | C47: 36 | D47: =経費の増減!E46 -> 0 | G47: =IF(税前ＰＬの組替!C46="","",税前ＰＬの組替!C46) ->  | H47: 36 | I47: =税前ＰＬの組替!G46 -> 0 | J47: 営業利益 | L47: =税前ＰＬの組替!M46 -> 1099544
B48: 計 | C48: 37 | D48: =経費の増減!E47 -> 0 | G48: 計 | H48: 37 | I48: =税前ＰＬの組替!G47 -> 0 | J48: 営外収益 | K48: =IF(税前ＰＬの組替!J47="","",税前ＰＬの組替!J47) ->  | L48: =税前ＰＬの組替!M47 -> 0
A49: 繰入額等 | B49: =IF(税前ＰＬの組替!C48="","",税前ＰＬの組替!C48) -> 専従者給与 | C49: 38 | D49: =経費の増減!E48 -> 1020000 | F49: 繰入額等 | G49: =IF(税前ＰＬの組替!C48="","",税前ＰＬの組替!C48) -> 専従者給与 | H49: 38 | I49: =税前ＰＬの組替!G48 -> 1020000 | K49: =IF(税前ＰＬの組替!J48="","",税前ＰＬの組替!J48) ->  | L49: =税前ＰＬの組替!M48 -> 0
B50: =IF(税前ＰＬの組替!C49="","",税前ＰＬの組替!C49) -> 貸倒引当金 | C50: 39 | D50: =経費の増減!E49 -> 0 | G50: =IF(税前ＰＬの組替!C49="","",税前ＰＬの組替!C49) -> 貸倒引当金 | H50: 39 | I50: =税前ＰＬの組替!G49 -> 0 | K50: =IF(税前ＰＬの組替!J49="","",税前ＰＬの組替!J49) ->  | L50: =税前ＰＬの組替!M49 -> 0
B51: =IF(税前ＰＬの組替!C50="","",税前ＰＬの組替!C50) ->  | C51: 40 | D51: =経費の増減!E50 -> 0 | G51: =IF(税前ＰＬの組替!C50="","",税前ＰＬの組替!C50) ->  | H51: 40 | I51: =税前ＰＬの組替!G50 -> 0 | K51: 計 | L51: =税前ＰＬの組替!M50 -> 0
B52: =IF(税前ＰＬの組替!C51="","",税前ＰＬの組替!C51) ->  | C52: 41 | D52: =経費の増減!E51 -> 0 | G52: =IF(税前ＰＬの組替!C51="","",税前ＰＬの組替!C51) ->  | H52: 41 | I52: =税前ＰＬの組替!G51 -> 0 | J52: 営外費用 | K52: =IF(税前ＰＬの組替!J51="","",税前ＰＬの組替!J51) ->  | L52: =税前ＰＬの組替!M51 -> 0
B53: 計 | C53: 42 | D53: =経費の増減!E52 -> 1020000 | G53: 計 | H53: 42 | I53: =税前ＰＬの組替!G52 -> 1020000 | K53: =IF(税前ＰＬの組替!J52="","",税前ＰＬの組替!J52) ->  | L53: =税前ＰＬの組替!M52 -> 0
B54: 青色特別控除前の所得金額 | C54: 43 | D54: =経費の増減!E53 -> 8250000 | G54: 青色特別控除前の所得金額 | H54: 43 | I54: =税前ＰＬの組替!G53 -> 3250000 | K54: =IF(税前ＰＬの組替!J53="","",税前ＰＬの組替!J53) ->  | L54: =税前ＰＬの組替!M53 -> 0
K55: 計 | L55: =税前ＰＬの組替!M54 -> 0
J56: 経常利益 | L56: =税前ＰＬの組替!M55 -> 1099544
J57: 特別利益 | K57: =IF(税前ＰＬの組替!J56="","",税前ＰＬの組替!J56) ->  | L57: =税前ＰＬの組替!M56 -> 0
K58: =IF(税前ＰＬの組替!J57="","",税前ＰＬの組替!J57) ->  | L58: =税前ＰＬの組替!M57 -> 0
K59: 計 | L59: =税前ＰＬの組替!M58 -> 0
J60: 特別損失 | K60: =IF(税前ＰＬの組替!J59="","",税前ＰＬの組替!J59) ->  | L60: =税前ＰＬの組替!M59 -> 0
K61: =IF(税前ＰＬの組替!J60="","",税前ＰＬの組替!J60) ->  | L61: =税前ＰＬの組替!M60 -> 0
K62: 計 | L62: =税前ＰＬの組替!M61 -> 0
J63: 税引前当期純利益 | L63: =税前ＰＬの組替!M62 -> 1099544
